Workbook

Sheet Basic Points
C3: Find DSRA in Sources and Uses Statement
C5: Use OFFSET and SUM for Computing the DSRA Balance
C7: Use MAX and MIN in Cash Flow for Withdrawls from DSRA

Sheet Exercise to Complete
A1: Inputs
B2: Operating Inputs
C3: EPC Cost | E3: 1300 | H3: Equity IRR | I3: =G74 -> 0.1198747417
C4: Initital Cash Flow | E4: 125 | H4: Project IRR
C5: Sensitivity Factor | E5: =F5/100 -> 1 | F5: 100
C6: Sensitivity Year | E6: 5 | H6: Cash Flow Test
C7: Life (Periods) | E7: 40
B9: Financial Inputs
C10: Debt Commitment | E10: 800
C11: Interest Rate (Periodic) | E11: 0.02
C12: Debt Term (Periods) | E12: 34
C13: Debt Reserve Months | E13: 12
C14: Interest Rate on Reserve | E14: 0.005
C15: Cash Sweep | E15: 0.5
A17: Periods
B18: Semi-Annual Period | H18: 1 | I18: =H18+1 -> 2 | J18: =I18+1 -> 3 | K18: 4 | L18: 5 | M18: 6 | N18: 7 | O18: 8 | P18: 9 | Q18: 10 | R18: 11 | S18: 12 | T18: 13 | U18: 14 | V18: 15 | W18: 16 | X18: 17 | Y18: 18 | Z18: 19 | AA18: 20 | AB18: 21 | AC18: 22 | AD18: 23 | AE18: 24 | AF18: 25 | AG18: 26 | AH18: 27 | AI18: 28 | AJ18: 29 | AK18: 30 | AL18: 31 | AM18: 32 | AN18: 33 | AO18: 34 | AP18: 35 | AQ18: 36 | AR18: 37 | AS18: 38 | AT18: 39 | AU18: 40 | AV18: 41
B19: Construction Switch | H19: =H18<1 -> FALSE | I19: =I18<1 -> FALSE | J19: FALSE | K19: FALSE | L19: FALSE | M19: FALSE | N19: FALSE | O19: FALSE | P19: FALSE | Q19: FALSE | R19: FALSE | S19: FALSE | T19: FALSE | U19: FALSE | V19: FALSE | W19: FALSE | X19: FALSE | Y19: FALSE | Z19: FALSE | AA19: FALSE | AB19: FALSE | AC19: FALSE | AD19: FALSE | AE19: FALSE | AF19: FALSE | AG19: FALSE | AH19: FALSE | AI19: FALSE | AJ19: FALSE | AK19: FALSE | AL19: FALSE | AM19: FALSE | AN19: FALSE | AO19: FALSE | AP19: FALSE | AQ19: FALSE | AR19: FALSE | AS19: FALSE | AT19: FALSE | AU19: FALSE | AV19: FALSE
B20: Operating Switch | H20: =AND(H18>0,H18<=Life) -> TRUE | I20: TRUE | J20: TRUE | K20: TRUE | L20: TRUE | M20: TRUE | N20: TRUE | O20: TRUE | P20: TRUE | Q20: TRUE | R20: TRUE | S20: TRUE | T20: TRUE | U20: TRUE | V20: TRUE | W20: TRUE | X20: TRUE | Y20: TRUE | Z20: TRUE | AA20: TRUE | AB20: TRUE | AC20: TRUE | AD20: TRUE | AE20: TRUE | AF20: TRUE | AG20: TRUE | AH20: TRUE | AI20: TRUE | AJ20: TRUE | AK20: TRUE | AL20: TRUE | AM20: TRUE | AN20: TRUE | AO20: TRUE | AP20: TRUE | AQ20: TRUE | AR20: TRUE | AS20: TRUE | AT20: TRUE | AU20: TRUE | AV20: FALSE
B21: Sensitivity Switch | H21: =H18>=Sensitivity_Year -> FALSE | I21: FALSE | J21: FALSE | K21: FALSE | L21: TRUE | M21: TRUE | N21: TRUE | O21: TRUE | P21: TRUE | Q21: TRUE | R21: TRUE | S21: TRUE | T21: TRUE | U21: TRUE | V21: TRUE | W21: TRUE | X21: TRUE | Y21: TRUE | Z21: TRUE | AA21: TRUE | AB21: TRUE | AC21: TRUE | AD21: TRUE | AE21: TRUE | AF21: TRUE | AG21: TRUE | AH21: TRUE | AI21: TRUE | AJ21: TRUE | AK21: TRUE | AL21: TRUE | AM21: TRUE | AN21: TRUE | AO21: TRUE | AP21: TRUE | AQ21: TRUE | AR21: TRUE | AS21: TRUE | AT21: TRUE | AU21: TRUE | AV21: TRUE
B22: Debt Repayment | E22: =Debt_Term -> 34 | H22: =H18<=$E$22 -> TRUE | I22: =I18<=$E$22 -> TRUE | J22: TRUE | K22: TRUE | L22: TRUE | M22: TRUE | N22: TRUE | O22: TRUE | P22: TRUE | Q22: TRUE | R22: TRUE | S22: TRUE | T22: TRUE | U22: TRUE | V22: TRUE | W22: TRUE | X22: TRUE | Y22: TRUE | Z22: TRUE | AA22: TRUE | AB22: TRUE | AC22: TRUE | AD22: TRUE | AE22: TRUE | AF22: TRUE | AG22: TRUE | AH22: TRUE | AI22: TRUE | AJ22: TRUE | AK22: TRUE | AL22: TRUE | AM22: TRUE | AN22: TRUE | AO22: TRUE | AP22: FALSE | AQ22: FALSE | AR22: FALSE | AS22: FALSE | AT22: FALSE | AU22: FALSE | AV22: FALSE
A24: Working
B25: EBITDA | H25: =H20*Initital_Cash_Flow -> 125 | I25: 125 | J25: 125 | K25: 125 | L25: 125 | M25: 125 | N25: 125 | O25: 125 | P25: 125 | Q25: 125 | R25: 125 | S25: 125 | T25: 125 | U25: 125 | V25: 125 | W25: 125 | X25: 125 | Y25: 125 | Z25: 125 | AA25: 125 | AB25: 125 | AC25: 125 | AD25: 125 | AE25: 125 | AF25: 125 | AG25: 125 | AH25: 125 | AI25: 125 | AJ25: 125 | AK25: 125 | AL25: 125 | AM25: 125 | AN25: 125 | AO25: 125 | AP25: 125 | AQ25: 125 | AR25: 125 | AS25: 125 | AT25: 125 | AU25: 125 | AV25: 0
B26: Sensitivity Factor | H26: =IF(H21,Sensitivity_Factor,1) -> 1 | I26: 1 | J26: 1 | K26: 1 | L26: 1 | M26: 1 | N26: 1 | O26: 1 | P26: 1 | Q26: 1 | R26: 1 | S26: 1 | T26: 1 | U26: 1 | V26: 1 | W26: 1 | X26: 1 | Y26: 1 | Z26: 1 | AA26: 1 | AB26: 1 | AC26: 1 | AD26: 1 | AE26: 1 | AF26: 1 | AG26: 1 | AH26: 1 | AI26: 1 | AJ26: 1 | AK26: 1 | AL26: 1 | AM26: 1 | AN26: 1 | AO26: 1 | AP26: 1 | AQ26: 1 | AR26: 1 | AS26: 1 | AT26: 1 | AU26: 1 | AV26: 1
B27: Cash Flow After Sensitivity | H27: =H26*H25 -> 125 | I27: =I26*I25 -> 125 | J27: 125 | K27: 125 | L27: 125 | M27: 125 | N27: 125 | O27: 125 | P27: 125 | Q27: 125 | R27: 125 | S27: 125 | T27: 125 | U27: 125 | V27: 125 | W27: 125 | X27: 125 | Y27: 125 | Z27: 125 | AA27: 125 | AB27: 125 | AC27: 125 | AD27: 125 | AE27: 125 | AF27: 125 | AG27: 125 | AH27: 125 | AI27: 125 | AJ27: 125 | AK27: 125 | AL27: 125 | AM27: 125 | AN27: 125 | AO27: 125 | AP27: 125 | AQ27: 125 | AR27: 125 | AS27: 125 | AT27: 125 | AU27: 125 | AV27: 0
A29: Uses and Sources
B30: Uses
C31: EPC Cost | G31: =EPC_Cost -> 1300
C32: DSRA - From Below | G32: =G49 -> 77.70237835
D33: Total | G33: =G31+G32 -> 1377.702378
B34: Sources
C35: Debt | G35: =Debt_Commitment -> 800
C36: Equity | G36: =G33-G35 -> 577.7023784
D37: Total | G37: =G35+G36 -> 1377.702378
A39: Debt and Reserve Schedule
B40: Debt Balance
C41: Opening Balalnce | H41: =G44 -> 800 | I41: =H44 -> 732.1777412 | J41: 663.6703035 | K41: 594.4707648 | L41: 524.5721332 | M41: 453.967346 | N41: 382.6492691 | O41: 310.6106843 | P41: 237.8431216 | Q41: 164.2212866 | R41: 78.06211356 | S41: -4.078515303e-12 | T41: 0 | U41: 0 | V41: 0 | W41: 0 | X41: 0 | Y41: 0 | Z41: 0 | AA41: 0 | AB41: 0 | AC41: 0 | AD41: 0 | AE41: 0 | AF41: 0 | AG41: 0 | AH41: 0 | AI41: 0 | AJ41: 0 | AK41: 0 | AL41: 0 | AM41: 0 | AN41: 0 | AO41: 0 | AP41: 0 | AQ41: 0 | AR41: 0 | AS41: 0 | AT41: 0 | AU41: 0 | AV41: 0
C42: Less: Repayment | E42: =Debt_Term -> 34 | H42: =MIN($E$44/$E$42,H41) -> 23.52941176 | I42: =MIN($E$44/$E$42,I41) -> 23.52941176 | J42: 23.52941176 | K42: 23.52941176 | L42: 23.52941176 | M42: 23.52941176 | N42: 23.52941176 | O42: 23.52941176 | P42: 23.52941176 | Q42: 23.52941176 | R42: 23.52941176 | S42: -4.078515303e-12 | T42: 0 | U42: 0 | V42: 0 | W42: 0 | X42: 0 | Y42: 0 | Z42: 0 | AA42: 0 | AB42: 0 | AC42: 0 | AD42: 0 | AE42: 0 | AF42: 0 | AG42: 0 | AH42: 0 | AI42: 0 | AJ42: 0 | AK42: 0 | AL42: 0 | AM42: 0 | AN42: 0 | AO42: 0 | AP42: 0 | AQ42: 0 | AR42: 0 | AS42: 0 | AT42: 0 | AU42: 0 | AV42: 0
C43: Less: Cash Sweep | H43: =H70 -> 44.29284703 | I43: =I70 -> 44.97802593 | J43: 45.6701269 | K43: 46.36921986 | L43: 47.07537546 | M43: 47.78866516 | N43: 48.50917296 | O43: 49.238151 | P43: 50.09242326 | Q43: 62.62976123 | R43: 54.5327018 | S43: 0 | T43: 0 | U43: 0 | V43: 0 | W43: 0 | X43: 0 | Y43: 0 | Z43: 0 | AA43: 0 | AB43: 0 | AC43: 0 | AD43: 0 | AE43: 0 | AF43: 0 | AG43: 0 | AH43: 0 | AI43: 0 | AJ43: 0 | AK43: 0 | AL43: 0 | AM43: 0 | AN43: 0 | AO43: 0 | AP43: 0 | AQ43: 0 | AR43: 0 | AS43: 0 | AT43: 0 | AU43: 0 | AV43: 0
C44: Closing Balance | E44: =Debt_Commitment -> 800 | G44: =E44 -> 800 | H44: =H41-H42-H43 -> 732.1777412 | I44: =I41-I42-I43 -> 663.6703035 | J44: 594.4707648 | K44: 524.5721332 | L44: 453.967346 | M44: 382.6492691 | N44: 310.6106843 | O44: 237.8431216 | P44: 164.2212866 | Q44: 78.06211356 | R44: 1.918465387e-12 | S44: 0 | T44: 0 | U44: 0 | V44: 0 | W44: 0 | X44: 0 | Y44: 0 | Z44: 0 | AA44: 0 | AB44: 0 | AC44: 0 | AD44: 0 | AE44: 0 | AF44: 0 | AG44: 0 | AH44: 0 | AI44: 0 | AJ44: 0 | AK44: 0 | AL44: 0 | AM44: 0 | AN44: 0 | AO44: 0 | AP44: 0 | AQ44: 0 | AR44: 0 | AS44: 0 | AT44: 0 | AU44: 0 | AV44: 0
C45: Interest | E45: =Interest_Rate -> 0.02 | H45: =H41*$E$45 -> 16 | I45: =I41*$E$45 -> 14.64355482 | J45: 13.27340607 | K45: 11.8894153 | L45: 10.49144266 | M45: 9.07934692 | N45: 7.652985381 | O45: 6.212213687 | P45: 4.756862432 | Q45: 3.284425731 | R45: 1.561242271 | S45: -8.157030607e-14 | T45: 0 | U45: 0 | V45: 0 | W45: 0 | X45: 0 | Y45: 0 | Z45: 0 | AA45: 0 | AB45: 0 | AC45: 0 | AD45: 0 | AE45: 0 | AF45: 0 | AG45: 0 | AH45: 0 | AI45: 0 | AJ45: 0 | AK45: 0 | AL45: 0 | AM45: 0 | AN45: 0 | AO45: 0 | AP45: 0 | AQ45: 0 | AR45: 0 | AS45: 0 | AT45: 0 | AU45: 0 | AV45: 0
B47: DSRA Balance
C48: Debt Service - FROM DEBT SCHEDULE ABOVE | H48: =H45+H42 -> 39.52941176 | I48: =I45+I42 -> 38.17296659 | J48: 36.80281783 | K48: 35.41882706 | L48: 34.02085443 | M48: 32.60875868 | N48: 31.18239715 | O48: 29.74162545 | P48: 28.2862742 | Q48: 26.8138375 | R48: 25.09065404 | S48: -4.160085609e-12 | T48: 0 | U48: 0 | V48: 0 | W48: 0 | X48: 0 | Y48: 0 | Z48: 0 | AA48: 0 | AB48: 0 | AC48: 0 | AD48: 0 | AE48: 0 | AF48: 0 | AG48: 0 | AH48: 0 | AI48: 0 | AJ48: 0 | AK48: 0 | AL48: 0 | AM48: 0 | AN48: 0 | AO48: 0 | AP48: 0 | AQ48: 0 | AR48: 0 | AS48: 0 | AT48: 0 | AU48: 0 | AV48: 0
C49: Required DSRA Balance - USE SUM AND OFFSET | E49: =reserve_months/6 -> 2 | G49: =SUM(OFFSET(G48,0,1,1,$E$49)) -> 77.70237835 | H49: =SUM(OFFSET(H48,0,1,1,$E$49))*H22 -> 74.97578442 | I49: =SUM(OFFSET(I48,0,1,1,$E$49))*I22 -> 72.2216449 | J49: 69.43968149 | K49: 66.62961311 | L49: 63.79115583 | M49: 60.9240226 | N49: 58.02789965 | O49: 55.10011169 | P49: 51.90449153 | Q49: 25.09065404 | R49: -4.160085609e-12 | S49: 0 | T49: 0 | U49: 0 | V49: 0 | W49: 0 | X49: 0 | Y49: 0 | Z49: 0 | AA49: 0 | AB49: 0 | AC49: 0 | AD49: 0 | AE49: 0 | AF49: 0 | AG49: 0 | AH49: 0 | AI49: 0 | AJ49: 0 | AK49: 0 | AL49: 0 | AM49: 0 | AN49: 0 | AO49: 0 | AP49: 0 | AQ49: 0 | AR49: 0 | AS49: 0 | AT49: 0 | AU49: 0 | AV49: 0
C50: Less: Amount Already Funded - OPENING BALANCE | H50: =H53 -> 77.70237835 | I50: =I53 -> 74.97578442 | J50: 72.2216449 | K50: 69.43968149 | L50: 66.62961311 | M50: 63.79115583 | N50: 60.9240226 | O50: 58.02789965 | P50: 55.10011169 | Q50: 51.90449153 | R50: 25.09065404 | S50: -8.004263918e-12 | T50: 1.729034693e-12 | U50: 2.720767611e-11 | V50: -2.022076728e-11 | W50: -7.19059301e-11 | X50: 1.226655399e-10 | Y50: 1.364291791e-10 | Z50: -5.66460443e-10 | AA50: 2.515349706e-11 | AB50: 2.032486037e-09 | AC50: -1.844005482e-09 | AD50: -5.323110486e-09 | AE50: 1.021625323e-08 | AF50: 9.679155255e-09 | AG50: -4.165309846e-08 | AH50: -1.190544197e-09 | AI50: 1.51904063e-07 | AJ50: -1.326722835e-07 | AK50: -4.194679127e-07 | AL50: 8.460500463e-07 | AM50: 6.312808492e-07 | AN50: -3.205210055e-06 | AO50: 2.854815536e-07 | AP50: 1.052981561e-05 | AQ50: -8.329978291e-06 | AR50: -3.298076118e-05 | AS50: 6.217118472e-05 | AT50: 5.798023032e-05 | AU50: -0.0002727376455 | AV50: 7.509245684e-05
C51: Required Net Additional Funding | H51: =H49-H50 -> -2.72659393 | I51: =I49-I50 -> -2.754139527 | J51: -2.781963406 | K51: -2.810068377 | L51: -2.838457283 | M51: -2.867133233 | N51: -2.89612295 | O51: -2.927787956 | P51: -3.19562016 | Q51: -26.8138375 | R51: -25.09065404 | S51: 8.004263918e-12 | T51: -1.729034693e-12 | U51: -2.720767611e-11 | V51: 2.022076728e-11 | W51: 7.19059301e-11 | X51: -1.226655399e-10 | Y51: -1.364291791e-10 | Z51: 5.66460443e-10 | AA51: -2.515349706e-11 | AB51: -2.032486037e-09 | AC51: 1.844005482e-09 | AD51: 5.323110486e-09 | AE51: -1.021625323e-08 | AF51: -9.679155255e-09 | AG51: 4.165309846e-08 | AH51: 1.190544197e-09 | AI51: -1.51904063e-07 | AJ51: 1.326722835e-07 | AK51: 4.194679127e-07 | AL51: -8.460500463e-07 | AM51: -6.312808492e-07 | AN51: 3.205210055e-06 | AO51: -2.854815536e-07 | AP51: -1.052981561e-05 | AQ51: 8.329978291e-06 | AR51: 3.298076118e-05 | AS51: -6.217118472e-05 | AT51: -5.798023032e-05 | AU51: 0.0002727376455 | AV51: -7.509245684e-05
C53: Opening Balance | H53: =G56 -> 77.70237835 | I53: =H56 -> 74.97578442 | J53: 72.2216449 | K53: 69.43968149 | L53: 66.62961311 | M53: 63.79115583 | N53: 60.9240226 | O53: 58.02789965 | P53: 55.10011169 | Q53: 51.90449153 | R53: 25.09065404 | S53: 7.119638212e-12 | T53: -1.086775114e-11 | U53: -1.191693855e-11 | V53: 4.854513236e-11 | W53: 3.199147613e-12 | X53: -1.577586772e-10 | Y53: 1.191807542e-10 | Z53: 4.425830014e-10 | AA53: -8.409114116e-10 | AB53: -8.460958156e-10 | AC53: 3.769868897e-09 | AD53: -3.100372226e-10 | AE53: -1.227284358e-08 | AF53: 1.052368177e-08 | AG53: 3.252575709e-08 | AH53: -6.047445311e-08 | AI53: -6.748348596e-08 | AJ53: 2.791550985e-07 | AK53: -1.099596062e-08 | AL53: -9.768630322e-07 | AM53: 9.400474264e-07 | AN53: 2.348696415e-06 | AO53: -4.792492215e-06 | AP53: -4.272189414e-06 | AQ53: 1.9190255e-05 | AR53: 1.926460804e-06 | AS53: -7.483566669e-05 | AT53: 6.521598405e-05 | AU53: 0.0002019938188 | AV53: -0.0004233952829
C54: Add: Net Addition Funding | H54: =H51 -> -2.72659393 | I54: =I51 -> -2.754139527 | J54: -2.781963406 | K54: -2.810068377 | L54: -2.838457283 | M54: -2.867133233 | N54: -2.89612295 | O54: -2.927787956 | P54: -3.19562016 | Q54: -26.8138375 | R54: -25.09065404 | S54: 8.004263918e-12 | T54: -1.729034693e-12 | U54: -2.720767611e-11 | V54: 2.022076728e-11 | W54: 7.19059301e-11 | X54: -1.226655399e-10 | Y54: -1.364291791e-10 | Z54: 5.66460443e-10 | AA54: -2.515349706e-11 | AB54: -2.032486037e-09 | AC54: 1.844005482e-09 | AD54: 5.323110486e-09 | AE54: -1.021625323e-08 | AF54: -9.679155255e-09 | AG54: 4.165309846e-08 | AH54: 1.190544197e-09 | AI54: -1.51904063e-07 | AJ54: 1.326722835e-07 | AK54: 4.194679127e-07 | AL54: -8.460500463e-07 | AM54: -6.312808492e-07 | AN54: 3.205210055e-06 | AO54: -2.854815536e-07 | AP54: -1.052981561e-05 | AQ54: 8.329978291e-06 | AR54: 3.298076118e-05 | AS54: -6.217118472e-05 | AT54: -5.798023032e-05 | AU54: 0.0002727376455 | AV54: -7.509245684e-05
C55: Less: Withdrawls for Deficit CF - FROM CASH FLOW WATERFALL | H55: =H68 -> 0 | I55: =I68 -> 0 | J55: 0 | K55: 0 | L55: 0 | M55: 0 | N55: 0 | O55: 0 | P55: 0 | Q55: 0 | R55: 0 | S55: 0 | T55: 0 | U55: 0 | V55: 0 | W55: 0 | X55: 0 | Y55: 0 | Z55: 0 | AA55: 0 | AB55: 0 | AC55: 0 | AD55: 0 | AE55: 0 | AF55: 0 | AG55: 0 | AH55: 0 | AI55: 0 | AJ55: 0 | AK55: 0 | AL55: 0 | AM55: 0 | AN55: 0 | AO55: 0 | AP55: 0 | AQ55: 0 | AR55: 0 | AS55: 0 | AT55: 0 | AU55: 0 | AV55: 0
C56: Closing Balance | G56: =G32 -> 77.70237835 | H56: =H53+H54-H55 -> 74.97578442 | I56: =I53+I54-I55 -> 72.2216449 | J56: 69.43968149 | K56: 66.62961311 | L56: 63.79115583 | M56: 60.9240226 | N56: 58.02789965 | O56: 55.10011169 | P56: 51.90449153 | Q56: 25.09065404 | R56: -1.048050535e-12 | S56: 1.512390213e-11 | T56: -1.259678584e-11 | U56: -3.912461466e-11 | V56: 6.876589964e-11 | W56: 7.510507771e-11 | X56: -2.804242172e-10 | Y56: -1.724842491e-11 | Z56: 1.009043444e-09 | AA56: -8.660649087e-10 | AB56: -2.878581853e-09 | AC56: 5.613874379e-09 | AD56: 5.013073263e-09 | AE56: -2.248909681e-08 | AF56: 8.445265109e-10 | AG56: 7.417885556e-08 | AH56: -5.928390891e-08 | AI56: -2.19387549e-07 | AJ56: 4.11827382e-07 | AK56: 4.084719521e-07 | AL56: -1.822913079e-06 | AM56: 3.087665772e-07 | AN56: 5.55390647e-06 | AO56: -5.077973769e-06 | AP56: -1.480200503e-05 | AQ56: 2.752023329e-05 | AR56: 3.490722198e-05 | AS56: -0.0001370068514 | AT56: 7.235753731e-06 | AU56: 0.0004747314643 | AV56: -0.0004984877398
C57: Interest Income | E57: =E14 -> 0.005 | H57: =$E$57*H53 -> 0.3885118918 | I57: =$E$57*I53 -> 0.3748789221 | J57: 0.3611082245 | K57: 0.3471984075 | L57: 0.3331480656 | M57: 0.3189557792 | N57: 0.304620113 | O57: 0.2901394982 | P57: 0.2755005585 | Q57: 0.2595224577 | R57: 0.1254532702 | S57: 3.559819106e-14 | T57: -5.433875572e-14 | U57: -5.958469274e-14 | V57: 2.427256618e-13 | W57: 1.599573807e-14 | X57: -7.887933862e-13 | Y57: 5.959037708e-13 | Z57: 2.212915007e-12 | AA57: -4.204557058e-12 | AB57: -4.230479078e-12 | AC57: 1.884934449e-11 | AD57: -1.550186113e-12 | AE57: -6.136421788e-11 | AF57: 5.261840883e-11 | AG57: 1.626287855e-10 | AH57: -3.023722655e-10 | AI57: -3.374174298e-10 | AJ57: 1.395775492e-09 | AK57: -5.497980311e-11 | AL57: -4.884315161e-09 | AM57: 4.700237132e-09 | AN57: 1.174348208e-08 | AO57: -2.396246107e-08 | AP57: -2.136094707e-08 | AQ57: 9.595127501e-08 | AR57: 9.632304018e-09 | AS57: -3.741783334e-07 | AT57: 3.260799202e-07 | AU57: 1.009969094e-06 | AV57: -2.116976415e-06
A59: Cash Flow Waterfall
C60: Operating Cash Flow | H60: =H27 -> 125 | I60: =I27 -> 125 | J60: 125 | K60: 125 | L60: 125 | M60: 125 | N60: 125 | O60: 125 | P60: 125 | Q60: 125 | R60: 125 | S60: 125 | T60: 125 | U60: 125 | V60: 125 | W60: 125 | X60: 125 | Y60: 125 | Z60: 125 | AA60: 125 | AB60: 125 | AC60: 125 | AD60: 125 | AE60: 125 | AF60: 125 | AG60: 125 | AH60: 125 | AI60: 125 | AJ60: 125 | AK60: 125 | AL60: 125 | AM60: 125 | AN60: 125 | AO60: 125 | AP60: 125 | AQ60: 125 | AR60: 125 | AS60: 125 | AT60: 125 | AU60: 125 | AV60: 0
C61: Add: Interest Income | H61: =H57 -> 0.3885118918 | I61: =I57 -> 0.3748789221 | J61: 0.3611082245 | K61: 0.3471984075 | L61: 0.3331480656 | M61: 0.3189557792 | N61: 0.304620113 | O61: 0.2901394982 | P61: 0.2755005585 | Q61: 0.2595224577 | R61: 0.1254532702 | S61: 3.559819106e-14 | T61: -5.433875572e-14 | U61: -5.958469274e-14 | V61: 2.427256618e-13 | W61: 1.599573807e-14 | X61: -7.887933862e-13 | Y61: 5.959037708e-13 | Z61: 2.212915007e-12 | AA61: -4.204557058e-12 | AB61: -4.230479078e-12 | AC61: 1.884934449e-11 | AD61: -1.550186113e-12 | AE61: -6.136421788e-11 | AF61: 5.261840883e-11 | AG61: 1.626287855e-10 | AH61: -3.023722655e-10 | AI61: -3.374174298e-10 | AJ61: 1.395775492e-09 | AK61: -5.497980311e-11 | AL61: -4.884315161e-09 | AM61: 4.700237132e-09 | AN61: 1.174348208e-08 | AO61: -2.396246107e-08 | AP61: -2.136094707e-08 | AQ61: 9.595127501e-08 | AR61: 9.632304018e-09 | AS61: -3.741783334e-07 | AT61: 3.260799202e-07 | AU61: 1.009969094e-06 | AV61: -2.116976415e-06
D62: CFADS | H62: =SUM(H60:H61) -> 125.3885119 | I62: =SUM(I60:I61) -> 125.3748789 | J62: 125.3611082 | K62: 125.3471984 | L62: 125.3331481 | M62: 125.3189558 | N62: 125.3046201 | O62: 125.2901395 | P62: 125.2755006 | Q62: 125.2595225 | R62: 125.1254533 | S62: 125 | T62: 125 | U62: 125 | V62: 125 | W62: 125 | X62: 125 | Y62: 125 | Z62: 125 | AA62: 125 | AB62: 125 | AC62: 125 | AD62: 125 | AE62: 125 | AF62: 125 | AG62: 125 | AH62: 125 | AI62: 125 | AJ62: 125 | AK62: 125 | AL62: 125 | AM62: 125 | AN62: 125 | AO62: 125 | AP62: 125 | AQ62: 125.0000001 | AR62: 125 | AS62: 124.9999996 | AT62: 125.0000003 | AU62: 125.000001 | AV62: -2.116976415e-06
C63: Less: Scheduled Interest | H63: =H45 -> 16 | I63: =I45 -> 14.64355482 | J63: 13.27340607 | K63: 11.8894153 | L63: 10.49144266 | M63: 9.07934692 | N63: 7.652985381 | O63: 6.212213687 | P63: 4.756862432 | Q63: 3.284425731 | R63: 1.561242271 | S63: -8.157030607e-14 | T63: 0 | U63: 0 | V63: 0 | W63: 0 | X63: 0 | Y63: 0 | Z63: 0 | AA63: 0 | AB63: 0 | AC63: 0 | AD63: 0 | AE63: 0 | AF63: 0 | AG63: 0 | AH63: 0 | AI63: 0 | AJ63: 0 | AK63: 0 | AL63: 0 | AM63: 0 | AN63: 0 | AO63: 0 | AP63: 0 | AQ63: 0 | AR63: 0 | AS63: 0 | AT63: 0 | AU63: 0 | AV63: 0
C64: Less: Scheduled Repayment | H64: =H42 -> 23.52941176 | I64: =I42 -> 23.52941176 | J64: 23.52941176 | K64: 23.52941176 | L64: 23.52941176 | M64: 23.52941176 | N64: 23.52941176 | O64: 23.52941176 | P64: 23.52941176 | Q64: 23.52941176 | R64: 23.52941176 | S64: -4.078515303e-12 | T64: 0 | U64: 0 | V64: 0 | W64: 0 | X64: 0 | Y64: 0 | Z64: 0 | AA64: 0 | AB64: 0 | AC64: 0 | AD64: 0 | AE64: 0 | AF64: 0 | AG64: 0 | AH64: 0 | AI64: 0 | AJ64: 0 | AK64: 0 | AL64: 0 | AM64: 0 | AN64: 0 | AO64: 0 | AP64: 0 | AQ64: 0 | AR64: 0 | AS64: 0 | AT64: 0 | AU64: 0 | AV64: 0
D65: Net Cash Flow | H65: =H62-H63-H64 -> 85.85910013 | I65: =I62-I63-I64 -> 87.20191233 | J65: =J62-J63-J64 -> 88.55829039 | K65: =K62-K63-K64 -> 89.92837135 | L65: =L62-L63-L64 -> 91.31229364 | M65: =M62-M63-M64 -> 92.71019709 | N65: =N62-N63-N64 -> 94.12222297 | O65: =O62-O63-O64 -> 95.54851405 | P65: =P62-P63-P64 -> 96.98922636 | Q65: =Q62-Q63-Q64 -> 98.44568496 | R65: =R62-R63-R64 -> 100.0347992 | S65: =S62-S63-S64 -> 125 | T65: =T62-T63-T64 -> 125 | U65: =U62-U63-U64 -> 125 | V65: =V62-V63-V64 -> 125 | W65: =W62-W63-W64 -> 125 | X65: =X62-X63-X64 -> 125 | Y65: =Y62-Y63-Y64 -> 125 | Z65: =Z62-Z63-Z64 -> 125 | AA65: =AA62-AA63-AA64 -> 125 | AB65: =AB62-AB63-AB64 -> 125 | AC65: =AC62-AC63-AC64 -> 125 | AD65: =AD62-AD63-AD64 -> 125 | AE65: =AE62-AE63-AE64 -> 125 | AF65: =AF62-AF63-AF64 -> 125 | AG65: =AG62-AG63-AG64 -> 125 | AH65: =AH62-AH63-AH64 -> 125 | AI65: =AI62-AI63-AI64 -> 125 | AJ65: =AJ62-AJ63-AJ64 -> 125 | AK65: =AK62-AK63-AK64 -> 125 | AL65: =AL62-AL63-AL64 -> 125 | AM65: =AM62-AM63-AM64 -> 125 | AN65: =AN62-AN63-AN64 -> 125 | AO65: =AO62-AO63-AO64 -> 125 | AP65: =AP62-AP63-AP64 -> 125 | AQ65: =AQ62-AQ63-AQ64 -> 125.0000001 | AR65: =AR62-AR63-AR64 -> 125 | AS65: =AS62-AS63-AS64 -> 124.9999996 | AT65: =AT62-AT63-AT64 -> 125.0000003 | AU65: =AU62-AU63-AU64 -> 125.000001 | AV65: =AV62-AV63-AV64 -> -2.116976415e-06
C66: Add: Interest Income
C67: Less: Net Added DSRA Funding | H67: =H51*H22 -> -2.72659393 | I67: =I51*I22 -> -2.754139527 | J67: =J51*J22 -> -2.781963406 | K67: =K51*K22 -> -2.810068377 | L67: =L51*L22 -> -2.838457283 | M67: =M51*M22 -> -2.867133233 | N67: =N51*N22 -> -2.89612295 | O67: =O51*O22 -> -2.927787956 | P67: =P51*P22 -> -3.19562016 | Q67: =Q51*Q22 -> -26.8138375 | R67: =R51*R22 -> -25.09065404 | S67: =S51*S22 -> 8.004263918e-12 | T67: =T51*T22 -> -1.729034693e-12 | U67: =U51*U22 -> -2.720767611e-11 | V67: =V51*V22 -> 2.022076728e-11 | W67: =W51*W22 -> 7.19059301e-11 | X67: =X51*X22 -> -1.226655399e-10 | Y67: =Y51*Y22 -> -1.364291791e-10 | Z67: =Z51*Z22 -> 5.66460443e-10 | AA67: =AA51*AA22 -> -2.515349706e-11 | AB67: =AB51*AB22 -> -2.032486037e-09 | AC67: =AC51*AC22 -> 1.844005482e-09 | AD67: =AD51*AD22 -> 5.323110486e-09 | AE67: =AE51*AE22 -> -1.021625323e-08 | AF67: =AF51*AF22 -> -9.679155255e-09 | AG67: =AG51*AG22 -> 4.165309846e-08 | AH67: =AH51*AH22 -> 1.190544197e-09 | AI67: =AI51*AI22 -> -1.51904063e-07 | AJ67: =AJ51*AJ22 -> 1.326722835e-07 | AK67: =AK51*AK22 -> 4.194679127e-07 | AL67: =AL51*AL22 -> -8.460500463e-07 | AM67: =AM51*AM22 -> -6.312808492e-07 | AN67: =AN51*AN22 -> 3.205210055e-06 | AO67: =AO51*AO22 -> -2.854815536e-07 | AP67: =AP51*AP22 -> 0 | AQ67: =AQ51*AQ22 -> 0 | AR67: =AR51*AR22 -> 0 | AS67: =AS51*AS22 -> 0 | AT67: =AT51*AT22 -> 0 | AU67: =AU51*AU22 -> 0 | AV67: =AV51*AV22 -> 0
C68: Add: Withdrawls from DSRA for Negative Cash Flow - USE MIN AND MAX | H68: =MIN(H48,MAX(-H65,0)) -> 0 | I68: =MIN(I48,MAX(-I65,0)) -> 0 | J68: =MIN(J48,MAX(-J65,0)) -> 0 | K68: =MIN(K48,MAX(-K65,0)) -> 0 | L68: =MIN(L48,MAX(-L65,0)) -> 0 | M68: =MIN(M48,MAX(-M65,0)) -> 0 | N68: =MIN(N48,MAX(-N65,0)) -> 0 | O68: =MIN(O48,MAX(-O65,0)) -> 0 | P68: =MIN(P48,MAX(-P65,0)) -> 0 | Q68: =MIN(Q48,MAX(-Q65,0)) -> 0 | R68: =MIN(R48,MAX(-R65,0)) -> 0 | S68: =MIN(S48,MAX(-S65,0)) -> -4.160085609e-12 | T68: =MIN(T48,MAX(-T65,0)) -> 0 | U68: =MIN(U48,MAX(-U65,0)) -> 0 | V68: =MIN(V48,MAX(-V65,0)) -> 0 | W68: =MIN(W48,MAX(-W65,0)) -> 0 | X68: =MIN(X48,MAX(-X65,0)) -> 0 | Y68: =MIN(Y48,MAX(-Y65,0)) -> 0 | Z68: =MIN(Z48,MAX(-Z65,0)) -> 0 | AA68: =MIN(AA48,MAX(-AA65,0)) -> 0 | AB68: =MIN(AB48,MAX(-AB65,0)) -> 0 | AC68: =MIN(AC48,MAX(-AC65,0)) -> 0 | AD68: =MIN(AD48,MAX(-AD65,0)) -> 0 | AE68: =MIN(AE48,MAX(-AE65,0)) -> 0 | AF68: =MIN(AF48,MAX(-AF65,0)) -> 0 | AG68: =MIN(AG48,MAX(-AG65,0)) -> 0 | AH68: =MIN(AH48,MAX(-AH65,0)) -> 0 | AI68: =MIN(AI48,MAX(-AI65,0)) -> 0 | AJ68: =MIN(AJ48,MAX(-AJ65,0)) -> 0 | AK68: =MIN(AK48,MAX(-AK65,0)) -> 0 | AL68: =MIN(AL48,MAX(-AL65,0)) -> 0 | AM68: =MIN(AM48,MAX(-AM65,0)) -> 0 | AN68: =MIN(AN48,MAX(-AN65,0)) -> 0 | AO68: =MIN(AO48,MAX(-AO65,0)) -> 0 | AP68: =MIN(AP48,MAX(-AP65,0)) -> 0 | AQ68: =MIN(AQ48,MAX(-AQ65,0)) -> 0 | AR68: =MIN(AR48,MAX(-AR65,0)) -> 0 | AS68: =MIN(AS48,MAX(-AS65,0)) -> 0 | AT68: =MIN(AT48,MAX(-AT65,0)) -> 0 | AU68: =MIN(AU48,MAX(-AU65,0)) -> 0 | AV68: =MIN(AV48,MAX(-AV65,0)) -> 0
D69: Net Cash Flow | H69: =H65-H67+H68+H66 -> 88.58569406 | I69: =I65-I67+I68+I66 -> 89.95605186 | J69: 91.3402538 | K69: 92.73843972 | L69: 94.15075092 | M69: 95.57733033 | N69: 97.01834592 | O69: 98.476302 | P69: 100.1848465 | Q69: 125.2595225 | R69: 125.1254533 | S69: 125 | T69: 125 | U69: 125 | V69: 125 | W69: 125 | X69: 125 | Y69: 125 | Z69: 125 | AA69: 125 | AB69: 125 | AC69: 125 | AD69: 125 | AE69: 125 | AF69: 125 | AG69: 125 | AH69: 125 | AI69: 125.0000002 | AJ69: 124.9999999 | AK69: 124.9999996 | AL69: 125.0000008 | AM69: 125.0000006 | AN69: 124.9999968 | AO69: 125.0000003 | AP69: 125 | AQ69: 125.0000001 | AR69: 125 | AS69: 124.9999996 | AT69: 125.0000003 | AU69: 125.000001 | AV69: -2.116976415e-06
C70: Less: Sweep | E70: =E15 -> 0.5 | H70: =MIN(H41-H42,MAX(H69,0)*$E$70) -> 44.29284703 | I70: =MIN(I41-I42,MAX(I69,0)*$E$70) -> 44.97802593 | J70: =MIN(J41-J42,MAX(J69,0)*$E$70) -> 45.6701269 | K70: =MIN(K41-K42,MAX(K69,0)*$E$70) -> 46.36921986 | L70: =MIN(L41-L42,MAX(L69,0)*$E$70) -> 47.07537546 | M70: =MIN(M41-M42,MAX(M69,0)*$E$70) -> 47.78866516 | N70: =MIN(N41-N42,MAX(N69,0)*$E$70) -> 48.50917296 | O70: =MIN(O41-O42,MAX(O69,0)*$E$70) -> 49.238151 | P70: =MIN(P41-P42,MAX(P69,0)*$E$70) -> 50.09242326 | Q70: =MIN(Q41-Q42,MAX(Q69,0)*$E$70) -> 62.62976123 | R70: =MIN(R41-R42,MAX(R69,0)*$E$70) -> 54.5327018 | S70: =MIN(S41-S42,MAX(S69,0)*$E$70) -> 0 | T70: =MIN(T41-T42,MAX(T69,0)*$E$70) -> 0 | U70: =MIN(U41-U42,MAX(U69,0)*$E$70) -> 0 | V70: =MIN(V41-V42,MAX(V69,0)*$E$70) -> 0 | W70: =MIN(W41-W42,MAX(W69,0)*$E$70) -> 0 | X70: =MIN(X41-X42,MAX(X69,0)*$E$70) -> 0 | Y70: =MIN(Y41-Y42,MAX(Y69,0)*$E$70) -> 0 | Z70: =MIN(Z41-Z42,MAX(Z69,0)*$E$70) -> 0 | AA70: =MIN(AA41-AA42,MAX(AA69,0)*$E$70) -> 0 | AB70: =MIN(AB41-AB42,MAX(AB69,0)*$E$70) -> 0 | AC70: =MIN(AC41-AC42,MAX(AC69,0)*$E$70) -> 0 | AD70: =MIN(AD41-AD42,MAX(AD69,0)*$E$70) -> 0 | AE70: =MIN(AE41-AE42,MAX(AE69,0)*$E$70) -> 0 | AF70: =MIN(AF41-AF42,MAX(AF69,0)*$E$70) -> 0 | AG70: =MIN(AG41-AG42,MAX(AG69,0)*$E$70) -> 0 | AH70: =MIN(AH41-AH42,MAX(AH69,0)*$E$70) -> 0 | AI70: =MIN(AI41-AI42,MAX(AI69,0)*$E$70) -> 0 | AJ70: =MIN(AJ41-AJ42,MAX(AJ69,0)*$E$70) -> 0 | AK70: =MIN(AK41-AK42,MAX(AK69,0)*$E$70) -> 0 | AL70: =MIN(AL41-AL42,MAX(AL69,0)*$E$70) -> 0 | AM70: =MIN(AM41-AM42,MAX(AM69,0)*$E$70) -> 0 | AN70: =MIN(AN41-AN42,MAX(AN69,0)*$E$70) -> 0 | AO70: =MIN(AO41-AO42,MAX(AO69,0)*$E$70) -> 0 | AP70: =MIN(AP41-AP42,MAX(AP69,0)*$E$70) -> 0 | AQ70: =MIN(AQ41-AQ42,MAX(AQ69,0)*$E$70) -> 0 | AR70: =MIN(AR41-AR42,MAX(AR69,0)*$E$70) -> 0 | AS70: =MIN(AS41-AS42,MAX(AS69,0)*$E$70) -> 0 | AT70: =MIN(AT41-AT42,MAX(AT69,0)*$E$70) -> 0 | AU70: =MIN(AU41-AU42,MAX(AU69,0)*$E$70) -> 0 | AV70: =MIN(AV41-AV42,MAX(AV69,0)*$E$70) -> 0
D71: Dividends | H71: =H69-H70 -> 44.29284703 | I71: =I69-I70 -> 44.97802593 | J71: 45.6701269 | K71: 46.36921986 | L71: 47.07537546 | M71: 47.78866516 | N71: 48.50917296 | O71: 49.238151 | P71: 50.09242326 | Q71: 62.62976123 | R71: 70.59275147 | S71: 125 | T71: 125 | U71: 125 | V71: 125 | W71: 125 | X71: 125 | Y71: 125 | Z71: 125 | AA71: 125 | AB71: 125 | AC71: 125 | AD71: 125 | AE71: 125 | AF71: 125 | AG71: 125 | AH71: 125 | AI71: 125.0000002 | AJ71: 124.9999999 | AK71: 124.9999996 | AL71: 125.0000008 | AM71: 125.0000006 | AN71: 124.9999968 | AO71: 125.0000003 | AP71: 125 | AQ71: 125.0000001 | AR71: 125 | AS71: 124.9999996 | AT71: 125.0000003 | AU71: 125.000001 | AV71: -2.116976415e-06
D73: Equity CF | G73: =-G36 -> -577.7023784 | H73: =H71 -> 44.29284703 | I73: =I71 -> 44.97802593 | J73: 45.6701269 | K73: 46.36921986 | L73: 47.07537546 | M73: 47.78866516 | N73: 48.50917296 | O73: 49.238151 | P73: 50.09242326 | Q73: 62.62976123 | R73: 70.59275147 | S73: 125 | T73: 125 | U73: 125 | V73: 125 | W73: 125 | X73: 125 | Y73: 125 | Z73: 125 | AA73: 125 | AB73: 125 | AC73: 125 | AD73: 125 | AE73: 125 | AF73: 125 | AG73: 125 | AH73: 125 | AI73: 125.0000002 | AJ73: 124.9999999 | AK73: 124.9999996 | AL73: 125.0000008 | AM73: 125.0000006 | AN73: 124.9999968 | AO73: 125.0000003 | AP73: 125 | AQ73: 125.0000001 | AR73: 125 | AS73: 124.9999996 | AT73: 125.0000003 | AU73: 125.000001 | AV73: -2.116976415e-06
G74: =IRR(73:73) -> 0.1198747417

Sheet Basic Exercise
A1: Inputs
B2: Operating Inputs
C3: EPC Cost | E3: 1300 | H3: Equity IRR | I3: =G74 -> 0.1198747417
C4: Initital Cash Flow | E4: 125 | H4: Project IRR
C5: Sensitivity Factor | E5: =F5/100 -> 1 | F5: 100
C6: Sensitivity Year | E6: 5 | H6: Cash Flow Test
C7: Life (Periods) | E7: 40
B9: Financial Inputs
C10: Debt Commitment | E10: 800
C11: Interest Rate (Periodic) | E11: 0.02
C12: Debt Term (Periods) | E12: 34
C13: Debt Reserve Months | E13: 12
C14: Interest Rate on Reserve | E14: 0.005
C15: Cash Sweep | E15: 0.5
A17: Periods
B18: Semi-Annual Period | H18: 1 | I18: =H18+1 -> 2 | J18: =I18+1 -> 3 | K18: 4 | L18: 5 | M18: 6 | N18: 7 | O18: 8 | P18: 9 | Q18: 10 | R18: 11 | S18: 12 | T18: 13 | U18: 14 | V18: 15 | W18: 16 | X18: 17 | Y18: 18 | Z18: 19 | AA18: 20 | AB18: 21 | AC18: 22 | AD18: 23 | AE18: 24 | AF18: 25 | AG18: 26 | AH18: 27 | AI18: 28 | AJ18: 29 | AK18: 30 | AL18: 31 | AM18: 32 | AN18: 33 | AO18: 34 | AP18: 35 | AQ18: 36 | AR18: 37 | AS18: 38 | AT18: 39 | AU18: 40 | AV18: 41
B19: Construction Switch | H19: =H18<1 -> FALSE | I19: =I18<1 -> FALSE | J19: FALSE | K19: FALSE | L19: FALSE | M19: FALSE | N19: FALSE | O19: FALSE | P19: FALSE | Q19: FALSE | R19: FALSE | S19: FALSE | T19: FALSE | U19: FALSE | V19: FALSE | W19: FALSE | X19: FALSE | Y19: FALSE | Z19: FALSE | AA19: FALSE | AB19: FALSE | AC19: FALSE | AD19: FALSE | AE19: FALSE | AF19: FALSE | AG19: FALSE | AH19: FALSE | AI19: FALSE | AJ19: FALSE | AK19: FALSE | AL19: FALSE | AM19: FALSE | AN19: FALSE | AO19: FALSE | AP19: FALSE | AQ19: FALSE | AR19: FALSE | AS19: FALSE | AT19: FALSE | AU19: FALSE | AV19: FALSE
B20: Operating Switch | H20: =AND(H18>0,H18<=Life) -> TRUE | I20: TRUE | J20: TRUE | K20: TRUE | L20: TRUE | M20: TRUE | N20: TRUE | O20: TRUE | P20: TRUE | Q20: TRUE | R20: TRUE | S20: TRUE | T20: TRUE | U20: TRUE | V20: TRUE | W20: TRUE | X20: TRUE | Y20: TRUE | Z20: TRUE | AA20: TRUE | AB20: TRUE | AC20: TRUE | AD20: TRUE | AE20: TRUE | AF20: TRUE | AG20: TRUE | AH20: TRUE | AI20: TRUE | AJ20: TRUE | AK20: TRUE | AL20: TRUE | AM20: TRUE | AN20: TRUE | AO20: TRUE | AP20: TRUE | AQ20: TRUE | AR20: TRUE | AS20: TRUE | AT20: TRUE | AU20: TRUE | AV20: FALSE
B21: Sensitivity Switch | H21: =H18>=Sensitivity_Year -> FALSE | I21: FALSE | J21: FALSE | K21: FALSE | L21: TRUE | M21: TRUE | N21: TRUE | O21: TRUE | P21: TRUE | Q21: TRUE | R21: TRUE | S21: TRUE | T21: TRUE | U21: TRUE | V21: TRUE | W21: TRUE | X21: TRUE | Y21: TRUE | Z21: TRUE | AA21: TRUE | AB21: TRUE | AC21: TRUE | AD21: TRUE | AE21: TRUE | AF21: TRUE | AG21: TRUE | AH21: TRUE | AI21: TRUE | AJ21: TRUE | AK21: TRUE | AL21: TRUE | AM21: TRUE | AN21: TRUE | AO21: TRUE | AP21: TRUE | AQ21: TRUE | AR21: TRUE | AS21: TRUE | AT21: TRUE | AU21: TRUE | AV21: TRUE
B22: Debt Repayment | E22: =Debt_Term -> 34 | H22: =H18<=$E$22 -> TRUE | I22: =I18<=$E$22 -> TRUE | J22: TRUE | K22: TRUE | L22: TRUE | M22: TRUE | N22: TRUE | O22: TRUE | P22: TRUE | Q22: TRUE | R22: TRUE | S22: TRUE | T22: TRUE | U22: TRUE | V22: TRUE | W22: TRUE | X22: TRUE | Y22: TRUE | Z22: TRUE | AA22: TRUE | AB22: TRUE | AC22: TRUE | AD22: TRUE | AE22: TRUE | AF22: TRUE | AG22: TRUE | AH22: TRUE | AI22: TRUE | AJ22: TRUE | AK22: TRUE | AL22: TRUE | AM22: TRUE | AN22: TRUE | AO22: TRUE | AP22: FALSE | AQ22: FALSE | AR22: FALSE | AS22: FALSE | AT22: FALSE | AU22: FALSE | AV22: FALSE
A24: Working
B25: EBITDA | H25: =H20*Initital_Cash_Flow -> 125 | I25: 125 | J25: 125 | K25: 125 | L25: 125 | M25: 125 | N25: 125 | O25: 125 | P25: 125 | Q25: 125 | R25: 125 | S25: 125 | T25: 125 | U25: 125 | V25: 125 | W25: 125 | X25: 125 | Y25: 125 | Z25: 125 | AA25: 125 | AB25: 125 | AC25: 125 | AD25: 125 | AE25: 125 | AF25: 125 | AG25: 125 | AH25: 125 | AI25: 125 | AJ25: 125 | AK25: 125 | AL25: 125 | AM25: 125 | AN25: 125 | AO25: 125 | AP25: 125 | AQ25: 125 | AR25: 125 | AS25: 125 | AT25: 125 | AU25: 125 | AV25: 0
B26: Sensitivity Factor | H26: =IF(H21,Sensitivity_Factor,1) -> 1 | I26: 1 | J26: 1 | K26: 1 | L26: 1 | M26: 1 | N26: 1 | O26: 1 | P26: 1 | Q26: 1 | R26: 1 | S26: 1 | T26: 1 | U26: 1 | V26: 1 | W26: 1 | X26: 1 | Y26: 1 | Z26: 1 | AA26: 1 | AB26: 1 | AC26: 1 | AD26: 1 | AE26: 1 | AF26: 1 | AG26: 1 | AH26: 1 | AI26: 1 | AJ26: 1 | AK26: 1 | AL26: 1 | AM26: 1 | AN26: 1 | AO26: 1 | AP26: 1 | AQ26: 1 | AR26: 1 | AS26: 1 | AT26: 1 | AU26: 1 | AV26: 1
B27: Cash Flow After Sensitivity | H27: =H26*H25 -> 125 | I27: =I26*I25 -> 125 | J27: 125 | K27: 125 | L27: 125 | M27: 125 | N27: 125 | O27: 125 | P27: 125 | Q27: 125 | R27: 125 | S27: 125 | T27: 125 | U27: 125 | V27: 125 | W27: 125 | X27: 125 | Y27: 125 | Z27: 125 | AA27: 125 | AB27: 125 | AC27: 125 | AD27: 125 | AE27: 125 | AF27: 125 | AG27: 125 | AH27: 125 | AI27: 125 | AJ27: 125 | AK27: 125 | AL27: 125 | AM27: 125 | AN27: 125 | AO27: 125 | AP27: 125 | AQ27: 125 | AR27: 125 | AS27: 125 | AT27: 125 | AU27: 125 | AV27: 0
A29: Uses and Sources
B30: Uses
C31: EPC Cost | G31: =EPC_Cost -> 1300
C32: DSRA - From Below | G32: =G49 -> 77.70237835
D33: Total | G33: =G31+G32 -> 1377.702378
B34: Sources
C35: Debt | G35: =Debt_Commitment -> 800
C36: Equity | G36: =G33-G35 -> 577.7023784
D37: Total | G37: =G35+G36 -> 1377.702378
A39: Debt and Reserve Schedule
B40: Debt Balance
C41: Opening Balalnce | H41: =G44 -> 800 | I41: =H44 -> 732.1777412 | J41: 663.6703035 | K41: 594.4707648 | L41: 524.5721332 | M41: 453.967346 | N41: 382.6492691 | O41: 310.6106843 | P41: 237.8431216 | Q41: 164.2212866 | R41: 78.06211356 | S41: -4.078515303e-12 | T41: 0 | U41: 0 | V41: 0 | W41: 0 | X41: 0 | Y41: 0 | Z41: 0 | AA41: 0 | AB41: 0 | AC41: 0 | AD41: 0 | AE41: 0 | AF41: 0 | AG41: 0 | AH41: 0 | AI41: 0 | AJ41: 0 | AK41: 0 | AL41: 0 | AM41: 0 | AN41: 0 | AO41: 0 | AP41: 0 | AQ41: 0 | AR41: 0 | AS41: 0 | AT41: 0 | AU41: 0 | AV41: 0
C42: Less: Repayment | E42: =Debt_Term -> 34 | H42: =MIN($E$44/$E$42,H41) -> 23.52941176 | I42: =MIN($E$44/$E$42,I41) -> 23.52941176 | J42: 23.52941176 | K42: 23.52941176 | L42: 23.52941176 | M42: 23.52941176 | N42: 23.52941176 | O42: 23.52941176 | P42: 23.52941176 | Q42: 23.52941176 | R42: 23.52941176 | S42: -4.078515303e-12 | T42: 0 | U42: 0 | V42: 0 | W42: 0 | X42: 0 | Y42: 0 | Z42: 0 | AA42: 0 | AB42: 0 | AC42: 0 | AD42: 0 | AE42: 0 | AF42: 0 | AG42: 0 | AH42: 0 | AI42: 0 | AJ42: 0 | AK42: 0 | AL42: 0 | AM42: 0 | AN42: 0 | AO42: 0 | AP42: 0 | AQ42: 0 | AR42: 0 | AS42: 0 | AT42: 0 | AU42: 0 | AV42: 0
C43: Less: Cash Sweep | H43: =H70 -> 44.29284703 | I43: =I70 -> 44.97802593 | J43: 45.6701269 | K43: 46.36921986 | L43: 47.07537546 | M43: 47.78866516 | N43: 48.50917296 | O43: 49.238151 | P43: 50.09242326 | Q43: 62.62976123 | R43: 54.5327018 | S43: 0 | T43: 0 | U43: 0 | V43: 0 | W43: 0 | X43: 0 | Y43: 0 | Z43: 0 | AA43: 0 | AB43: 0 | AC43: 0 | AD43: 0 | AE43: 0 | AF43: 0 | AG43: 0 | AH43: 0 | AI43: 0 | AJ43: 0 | AK43: 0 | AL43: 0 | AM43: 0 | AN43: 0 | AO43: 0 | AP43: 0 | AQ43: 0 | AR43: 0 | AS43: 0 | AT43: 0 | AU43: 0 | AV43: 0
C44: Closing Balance | E44: =Debt_Commitment -> 800 | G44: =E44 -> 800 | H44: =H41-H42-H43 -> 732.1777412 | I44: =I41-I42-I43 -> 663.6703035 | J44: 594.4707648 | K44: 524.5721332 | L44: 453.967346 | M44: 382.6492691 | N44: 310.6106843 | O44: 237.8431216 | P44: 164.2212866 | Q44: 78.06211356 | R44: 1.918465387e-12 | S44: 0 | T44: 0 | U44: 0 | V44: 0 | W44: 0 | X44: 0 | Y44: 0 | Z44: 0 | AA44: 0 | AB44: 0 | AC44: 0 | AD44: 0 | AE44: 0 | AF44: 0 | AG44: 0 | AH44: 0 | AI44: 0 | AJ44: 0 | AK44: 0 | AL44: 0 | AM44: 0 | AN44: 0 | AO44: 0 | AP44: 0 | AQ44: 0 | AR44: 0 | AS44: 0 | AT44: 0 | AU44: 0 | AV44: 0
C45: Interest | E45: =Interest_Rate -> 0.02 | H45: =H41*$E$45 -> 16 | I45: =I41*$E$45 -> 14.64355482 | J45: 13.27340607 | K45: 11.8894153 | L45: 10.49144266 | M45: 9.07934692 | N45: 7.652985381 | O45: 6.212213687 | P45: 4.756862432 | Q45: 3.284425731 | R45: 1.561242271 | S45: -8.157030607e-14 | T45: 0 | U45: 0 | V45: 0 | W45: 0 | X45: 0 | Y45: 0 | Z45: 0 | AA45: 0 | AB45: 0 | AC45: 0 | AD45: 0 | AE45: 0 | AF45: 0 | AG45: 0 | AH45: 0 | AI45: 0 | AJ45: 0 | AK45: 0 | AL45: 0 | AM45: 0 | AN45: 0 | AO45: 0 | AP45: 0 | AQ45: 0 | AR45: 0 | AS45: 0 | AT45: 0 | AU45: 0 | AV45: 0
B47: DSRA Balance
C48: Debt Service - FROM DEBT SCHEDULE ABOVE | H48: =H45+H42 -> 39.52941176 | I48: =I45+I42 -> 38.17296659 | J48: 36.80281783 | K48: 35.41882706 | L48: 34.02085443 | M48: 32.60875868 | N48: 31.18239715 | O48: 29.74162545 | P48: 28.2862742 | Q48: 26.8138375 | R48: 25.09065404 | S48: -4.160085609e-12 | T48: 0 | U48: 0 | V48: 0 | W48: 0 | X48: 0 | Y48: 0 | Z48: 0 | AA48: 0 | AB48: 0 | AC48: 0 | AD48: 0 | AE48: 0 | AF48: 0 | AG48: 0 | AH48: 0 | AI48: 0 | AJ48: 0 | AK48: 0 | AL48: 0 | AM48: 0 | AN48: 0 | AO48: 0 | AP48: 0 | AQ48: 0 | AR48: 0 | AS48: 0 | AT48: 0 | AU48: 0 | AV48: 0
C49: Required DSRA Balance - USE SUM AND OFFSET | E49: =reserve_months/6 -> 2 | G49: =SUM(OFFSET(G48,0,1,1,$E$49)) -> 77.70237835 | H49: =SUM(OFFSET(H48,0,1,1,$E$49))*H22 -> 74.97578442 | I49: =SUM(OFFSET(I48,0,1,1,$E$49))*I22 -> 72.2216449 | J49: 69.43968149 | K49: 66.62961311 | L49: 63.79115583 | M49: 60.9240226 | N49: 58.02789965 | O49: 55.10011169 | P49: 51.90449153 | Q49: 25.09065404 | R49: -4.160085609e-12 | S49: 0 | T49: 0 | U49: 0 | V49: 0 | W49: 0 | X49: 0 | Y49: 0 | Z49: 0 | AA49: 0 | AB49: 0 | AC49: 0 | AD49: 0 | AE49: 0 | AF49: 0 | AG49: 0 | AH49: 0 | AI49: 0 | AJ49: 0 | AK49: 0 | AL49: 0 | AM49: 0 | AN49: 0 | AO49: 0 | AP49: 0 | AQ49: 0 | AR49: 0 | AS49: 0 | AT49: 0 | AU49: 0 | AV49: 0
C50: Less: Amount Already Funded - OPENING BALANCE | H50: =H53 -> 77.70237835 | I50: =I53 -> 74.97578442 | J50: 72.2216449 | K50: 69.43968149 | L50: 66.62961311 | M50: 63.79115583 | N50: 60.9240226 | O50: 58.02789965 | P50: 55.10011169 | Q50: 51.90449153 | R50: 25.09065404 | S50: -8.004263918e-12 | T50: 1.729034693e-12 | U50: 2.720767611e-11 | V50: -2.022076728e-11 | W50: -7.19059301e-11 | X50: 1.226655399e-10 | Y50: 1.364291791e-10 | Z50: -5.66460443e-10 | AA50: 2.515349706e-11 | AB50: 2.032486037e-09 | AC50: -1.844005482e-09 | AD50: -5.323110486e-09 | AE50: 1.021625323e-08 | AF50: 9.679155255e-09 | AG50: -4.165309846e-08 | AH50: -1.190544197e-09 | AI50: 1.51904063e-07 | AJ50: -1.326722835e-07 | AK50: -4.194679127e-07 | AL50: 8.460500463e-07 | AM50: 6.312808492e-07 | AN50: -3.205210055e-06 | AO50: 2.854815536e-07 | AP50: 1.052981561e-05 | AQ50: -8.329978291e-06 | AR50: -3.298076118e-05 | AS50: 6.217118472e-05 | AT50: 5.798023032e-05 | AU50: -0.0002727376455 | AV50: 7.509245684e-05
C51: Required Net Additional Funding | H51: =H49-H50 -> -2.72659393 | I51: =I49-I50 -> -2.754139527 | J51: -2.781963406 | K51: -2.810068377 | L51: -2.838457283 | M51: -2.867133233 | N51: -2.89612295 | O51: -2.927787956 | P51: -3.19562016 | Q51: -26.8138375 | R51: -25.09065404 | S51: 8.004263918e-12 | T51: -1.729034693e-12 | U51: -2.720767611e-11 | V51: 2.022076728e-11 | W51: 7.19059301e-11 | X51: -1.226655399e-10 | Y51: -1.364291791e-10 | Z51: 5.66460443e-10 | AA51: -2.515349706e-11 | AB51: -2.032486037e-09 | AC51: 1.844005482e-09 | AD51: 5.323110486e-09 | AE51: -1.021625323e-08 | AF51: -9.679155255e-09 | AG51: 4.165309846e-08 | AH51: 1.190544197e-09 | AI51: -1.51904063e-07 | AJ51: 1.326722835e-07 | AK51: 4.194679127e-07 | AL51: -8.460500463e-07 | AM51: -6.312808492e-07 | AN51: 3.205210055e-06 | AO51: -2.854815536e-07 | AP51: -1.052981561e-05 | AQ51: 8.329978291e-06 | AR51: 3.298076118e-05 | AS51: -6.217118472e-05 | AT51: -5.798023032e-05 | AU51: 0.0002727376455 | AV51: -7.509245684e-05
C53: Opening Balance | H53: =G56 -> 77.70237835 | I53: =H56 -> 74.97578442 | J53: 72.2216449 | K53: 69.43968149 | L53: 66.62961311 | M53: 63.79115583 | N53: 60.9240226 | O53: 58.02789965 | P53: 55.10011169 | Q53: 51.90449153 | R53: 25.09065404 | S53: 7.119638212e-12 | T53: -1.086775114e-11 | U53: -1.191693855e-11 | V53: 4.854513236e-11 | W53: 3.199147613e-12 | X53: -1.577586772e-10 | Y53: 1.191807542e-10 | Z53: 4.425830014e-10 | AA53: -8.409114116e-10 | AB53: -8.460958156e-10 | AC53: 3.769868897e-09 | AD53: -3.100372226e-10 | AE53: -1.227284358e-08 | AF53: 1.052368177e-08 | AG53: 3.252575709e-08 | AH53: -6.047445311e-08 | AI53: -6.748348596e-08 | AJ53: 2.791550985e-07 | AK53: -1.099596062e-08 | AL53: -9.768630322e-07 | AM53: 9.400474264e-07 | AN53: 2.348696415e-06 | AO53: -4.792492215e-06 | AP53: -4.272189414e-06 | AQ53: 1.9190255e-05 | AR53: 1.926460804e-06 | AS53: -7.483566669e-05 | AT53: 6.521598405e-05 | AU53: 0.0002019938188 | AV53: -0.0004233952829
C54: Add: Net Addition Funding | H54: =H51 -> -2.72659393 | I54: =I51 -> -2.754139527 | J54: -2.781963406 | K54: -2.810068377 | L54: -2.838457283 | M54: -2.867133233 | N54: -2.89612295 | O54: -2.927787956 | P54: -3.19562016 | Q54: -26.8138375 | R54: -25.09065404 | S54: 8.004263918e-12 | T54: -1.729034693e-12 | U54: -2.720767611e-11 | V54: 2.022076728e-11 | W54: 7.19059301e-11 | X54: -1.226655399e-10 | Y54: -1.364291791e-10 | Z54: 5.66460443e-10 | AA54: -2.515349706e-11 | AB54: -2.032486037e-09 | AC54: 1.844005482e-09 | AD54: 5.323110486e-09 | AE54: -1.021625323e-08 | AF54: -9.679155255e-09 | AG54: 4.165309846e-08 | AH54: 1.190544197e-09 | AI54: -1.51904063e-07 | AJ54: 1.326722835e-07 | AK54: 4.194679127e-07 | AL54: -8.460500463e-07 | AM54: -6.312808492e-07 | AN54: 3.205210055e-06 | AO54: -2.854815536e-07 | AP54: -1.052981561e-05 | AQ54: 8.329978291e-06 | AR54: 3.298076118e-05 | AS54: -6.217118472e-05 | AT54: -5.798023032e-05 | AU54: 0.0002727376455 | AV54: -7.509245684e-05
C55: Less: Withdrawls for Deficit CF - FROM CASH FLOW WATERFALL | H55: =H68 -> 0 | I55: =I68 -> 0 | J55: 0 | K55: 0 | L55: 0 | M55: 0 | N55: 0 | O55: 0 | P55: 0 | Q55: 0 | R55: 0 | S55: 0 | T55: 0 | U55: 0 | V55: 0 | W55: 0 | X55: 0 | Y55: 0 | Z55: 0 | AA55: 0 | AB55: 0 | AC55: 0 | AD55: 0 | AE55: 0 | AF55: 0 | AG55: 0 | AH55: 0 | AI55: 0 | AJ55: 0 | AK55: 0 | AL55: 0 | AM55: 0 | AN55: 0 | AO55: 0 | AP55: 0 | AQ55: 0 | AR55: 0 | AS55: 0 | AT55: 0 | AU55: 0 | AV55: 0
C56: Closing Balance | G56: =G32 -> 77.70237835 | H56: =H53+H54-H55 -> 74.97578442 | I56: =I53+I54-I55 -> 72.2216449 | J56: 69.43968149 | K56: 66.62961311 | L56: 63.79115583 | M56: 60.9240226 | N56: 58.02789965 | O56: 55.10011169 | P56: 51.90449153 | Q56: 25.09065404 | R56: -1.048050535e-12 | S56: 1.512390213e-11 | T56: -1.259678584e-11 | U56: -3.912461466e-11 | V56: 6.876589964e-11 | W56: 7.510507771e-11 | X56: -2.804242172e-10 | Y56: -1.724842491e-11 | Z56: 1.009043444e-09 | AA56: -8.660649087e-10 | AB56: -2.878581853e-09 | AC56: 5.613874379e-09 | AD56: 5.013073263e-09 | AE56: -2.248909681e-08 | AF56: 8.445265109e-10 | AG56: 7.417885556e-08 | AH56: -5.928390891e-08 | AI56: -2.19387549e-07 | AJ56: 4.11827382e-07 | AK56: 4.084719521e-07 | AL56: -1.822913079e-06 | AM56: 3.087665772e-07 | AN56: 5.55390647e-06 | AO56: -5.077973769e-06 | AP56: -1.480200503e-05 | AQ56: 2.752023329e-05 | AR56: 3.490722198e-05 | AS56: -0.0001370068514 | AT56: 7.235753731e-06 | AU56: 0.0004747314643 | AV56: -0.0004984877398
C57: Interest Income | E57: =E14 -> 0.005 | H57: =$E$57*H53 -> 0.3885118918 | I57: =$E$57*I53 -> 0.3748789221 | J57: 0.3611082245 | K57: 0.3471984075 | L57: 0.3331480656 | M57: 0.3189557792 | N57: 0.304620113 | O57: 0.2901394982 | P57: 0.2755005585 | Q57: 0.2595224577 | R57: 0.1254532702 | S57: 3.559819106e-14 | T57: -5.433875572e-14 | U57: -5.958469274e-14 | V57: 2.427256618e-13 | W57: 1.599573807e-14 | X57: -7.887933862e-13 | Y57: 5.959037708e-13 | Z57: 2.212915007e-12 | AA57: -4.204557058e-12 | AB57: -4.230479078e-12 | AC57: 1.884934449e-11 | AD57: -1.550186113e-12 | AE57: -6.136421788e-11 | AF57: 5.261840883e-11 | AG57: 1.626287855e-10 | AH57: -3.023722655e-10 | AI57: -3.374174298e-10 | AJ57: 1.395775492e-09 | AK57: -5.497980311e-11 | AL57: -4.884315161e-09 | AM57: 4.700237132e-09 | AN57: 1.174348208e-08 | AO57: -2.396246107e-08 | AP57: -2.136094707e-08 | AQ57: 9.595127501e-08 | AR57: 9.632304018e-09 | AS57: -3.741783334e-07 | AT57: 3.260799202e-07 | AU57: 1.009969094e-06 | AV57: -2.116976415e-06
A59: Cash Flow Waterfall
C60: Operating Cash Flow | H60: =H27 -> 125 | I60: =I27 -> 125 | J60: 125 | K60: 125 | L60: 125 | M60: 125 | N60: 125 | O60: 125 | P60: 125 | Q60: 125 | R60: 125 | S60: 125 | T60: 125 | U60: 125 | V60: 125 | W60: 125 | X60: 125 | Y60: 125 | Z60: 125 | AA60: 125 | AB60: 125 | AC60: 125 | AD60: 125 | AE60: 125 | AF60: 125 | AG60: 125 | AH60: 125 | AI60: 125 | AJ60: 125 | AK60: 125 | AL60: 125 | AM60: 125 | AN60: 125 | AO60: 125 | AP60: 125 | AQ60: 125 | AR60: 125 | AS60: 125 | AT60: 125 | AU60: 125 | AV60: 0
C61: Add: Interest Income | H61: =H57 -> 0.3885118918 | I61: =I57 -> 0.3748789221 | J61: 0.3611082245 | K61: 0.3471984075 | L61: 0.3331480656 | M61: 0.3189557792 | N61: 0.304620113 | O61: 0.2901394982 | P61: 0.2755005585 | Q61: 0.2595224577 | R61: 0.1254532702 | S61: 3.559819106e-14 | T61: -5.433875572e-14 | U61: -5.958469274e-14 | V61: 2.427256618e-13 | W61: 1.599573807e-14 | X61: -7.887933862e-13 | Y61: 5.959037708e-13 | Z61: 2.212915007e-12 | AA61: -4.204557058e-12 | AB61: -4.230479078e-12 | AC61: 1.884934449e-11 | AD61: -1.550186113e-12 | AE61: -6.136421788e-11 | AF61: 5.261840883e-11 | AG61: 1.626287855e-10 | AH61: -3.023722655e-10 | AI61: -3.374174298e-10 | AJ61: 1.395775492e-09 | AK61: -5.497980311e-11 | AL61: -4.884315161e-09 | AM61: 4.700237132e-09 | AN61: 1.174348208e-08 | AO61: -2.396246107e-08 | AP61: -2.136094707e-08 | AQ61: 9.595127501e-08 | AR61: 9.632304018e-09 | AS61: -3.741783334e-07 | AT61: 3.260799202e-07 | AU61: 1.009969094e-06 | AV61: -2.116976415e-06
D62: CFADS | H62: =SUM(H60:H61) -> 125.3885119 | I62: =SUM(I60:I61) -> 125.3748789 | J62: 125.3611082 | K62: 125.3471984 | L62: 125.3331481 | M62: 125.3189558 | N62: 125.3046201 | O62: 125.2901395 | P62: 125.2755006 | Q62: 125.2595225 | R62: 125.1254533 | S62: 125 | T62: 125 | U62: 125 | V62: 125 | W62: 125 | X62: 125 | Y62: 125 | Z62: 125 | AA62: 125 | AB62: 125 | AC62: 125 | AD62: 125 | AE62: 125 | AF62: 125 | AG62: 125 | AH62: 125 | AI62: 125 | AJ62: 125 | AK62: 125 | AL62: 125 | AM62: 125 | AN62: 125 | AO62: 125 | AP62: 125 | AQ62: 125.0000001 | AR62: 125 | AS62: 124.9999996 | AT62: 125.0000003 | AU62: 125.000001 | AV62: -2.116976415e-06
C63: Less: Scheduled Interest | H63: =H45 -> 16 | I63: =I45 -> 14.64355482 | J63: 13.27340607 | K63: 11.8894153 | L63: 10.49144266 | M63: 9.07934692 | N63: 7.652985381 | O63: 6.212213687 | P63: 4.756862432 | Q63: 3.284425731 | R63: 1.561242271 | S63: -8.157030607e-14 | T63: 0 | U63: 0 | V63: 0 | W63: 0 | X63: 0 | Y63: 0 | Z63: 0 | AA63: 0 | AB63: 0 | AC63: 0 | AD63: 0 | AE63: 0 | AF63: 0 | AG63: 0 | AH63: 0 | AI63: 0 | AJ63: 0 | AK63: 0 | AL63: 0 | AM63: 0 | AN63: 0 | AO63: 0 | AP63: 0 | AQ63: 0 | AR63: 0 | AS63: 0 | AT63: 0 | AU63: 0 | AV63: 0
C64: Less: Scheduled Repayment | H64: =H42 -> 23.52941176 | I64: =I42 -> 23.52941176 | J64: 23.52941176 | K64: 23.52941176 | L64: 23.52941176 | M64: 23.52941176 | N64: 23.52941176 | O64: 23.52941176 | P64: 23.52941176 | Q64: 23.52941176 | R64: 23.52941176 | S64: -4.078515303e-12 | T64: 0 | U64: 0 | V64: 0 | W64: 0 | X64: 0 | Y64: 0 | Z64: 0 | AA64: 0 | AB64: 0 | AC64: 0 | AD64: 0 | AE64: 0 | AF64: 0 | AG64: 0 | AH64: 0 | AI64: 0 | AJ64: 0 | AK64: 0 | AL64: 0 | AM64: 0 | AN64: 0 | AO64: 0 | AP64: 0 | AQ64: 0 | AR64: 0 | AS64: 0 | AT64: 0 | AU64: 0 | AV64: 0
D65: Net Cash Flow | H65: =H62-H63-H64 -> 85.85910013 | I65: =I62-I63-I64 -> 87.20191233 | J65: =J62-J63-J64 -> 88.55829039 | K65: =K62-K63-K64 -> 89.92837135 | L65: =L62-L63-L64 -> 91.31229364 | M65: =M62-M63-M64 -> 92.71019709 | N65: =N62-N63-N64 -> 94.12222297 | O65: =O62-O63-O64 -> 95.54851405 | P65: =P62-P63-P64 -> 96.98922636 | Q65: =Q62-Q63-Q64 -> 98.44568496 | R65: =R62-R63-R64 -> 100.0347992 | S65: =S62-S63-S64 -> 125 | T65: =T62-T63-T64 -> 125 | U65: =U62-U63-U64 -> 125 | V65: =V62-V63-V64 -> 125 | W65: =W62-W63-W64 -> 125 | X65: =X62-X63-X64 -> 125 | Y65: =Y62-Y63-Y64 -> 125 | Z65: =Z62-Z63-Z64 -> 125 | AA65: =AA62-AA63-AA64 -> 125 | AB65: =AB62-AB63-AB64 -> 125 | AC65: =AC62-AC63-AC64 -> 125 | AD65: =AD62-AD63-AD64 -> 125 | AE65: =AE62-AE63-AE64 -> 125 | AF65: =AF62-AF63-AF64 -> 125 | AG65: =AG62-AG63-AG64 -> 125 | AH65: =AH62-AH63-AH64 -> 125 | AI65: =AI62-AI63-AI64 -> 125 | AJ65: =AJ62-AJ63-AJ64 -> 125 | AK65: =AK62-AK63-AK64 -> 125 | AL65: =AL62-AL63-AL64 -> 125 | AM65: =AM62-AM63-AM64 -> 125 | AN65: =AN62-AN63-AN64 -> 125 | AO65: =AO62-AO63-AO64 -> 125 | AP65: =AP62-AP63-AP64 -> 125 | AQ65: =AQ62-AQ63-AQ64 -> 125.0000001 | AR65: =AR62-AR63-AR64 -> 125 | AS65: =AS62-AS63-AS64 -> 124.9999996 | AT65: =AT62-AT63-AT64 -> 125.0000003 | AU65: =AU62-AU63-AU64 -> 125.000001 | AV65: =AV62-AV63-AV64 -> -2.116976415e-06
C66: Add: Interest Income
C67: Less: Net Added DSRA Funding | H67: =H51*H22 -> -2.72659393 | I67: =I51*I22 -> -2.754139527 | J67: =J51*J22 -> -2.781963406 | K67: =K51*K22 -> -2.810068377 | L67: =L51*L22 -> -2.838457283 | M67: =M51*M22 -> -2.867133233 | N67: =N51*N22 -> -2.89612295 | O67: =O51*O22 -> -2.927787956 | P67: =P51*P22 -> -3.19562016 | Q67: =Q51*Q22 -> -26.8138375 | R67: =R51*R22 -> -25.09065404 | S67: =S51*S22 -> 8.004263918e-12 | T67: =T51*T22 -> -1.729034693e-12 | U67: =U51*U22 -> -2.720767611e-11 | V67: =V51*V22 -> 2.022076728e-11 | W67: =W51*W22 -> 7.19059301e-11 | X67: =X51*X22 -> -1.226655399e-10 | Y67: =Y51*Y22 -> -1.364291791e-10 | Z67: =Z51*Z22 -> 5.66460443e-10 | AA67: =AA51*AA22 -> -2.515349706e-11 | AB67: =AB51*AB22 -> -2.032486037e-09 | AC67: =AC51*AC22 -> 1.844005482e-09 | AD67: =AD51*AD22 -> 5.323110486e-09 | AE67: =AE51*AE22 -> -1.021625323e-08 | AF67: =AF51*AF22 -> -9.679155255e-09 | AG67: =AG51*AG22 -> 4.165309846e-08 | AH67: =AH51*AH22 -> 1.190544197e-09 | AI67: =AI51*AI22 -> -1.51904063e-07 | AJ67: =AJ51*AJ22 -> 1.326722835e-07 | AK67: =AK51*AK22 -> 4.194679127e-07 | AL67: =AL51*AL22 -> -8.460500463e-07 | AM67: =AM51*AM22 -> -6.312808492e-07 | AN67: =AN51*AN22 -> 3.205210055e-06 | AO67: =AO51*AO22 -> -2.854815536e-07 | AP67: =AP51*AP22 -> 0 | AQ67: =AQ51*AQ22 -> 0 | AR67: =AR51*AR22 -> 0 | AS67: =AS51*AS22 -> 0 | AT67: =AT51*AT22 -> 0 | AU67: =AU51*AU22 -> 0 | AV67: =AV51*AV22 -> 0
C68: Add: Withdrawls from DSRA for Negative Cash Flow - USE MIN AND MAX | H68: =MIN(H48,MAX(-H65,0)) -> 0 | I68: =MIN(I48,MAX(-I65,0)) -> 0 | J68: =MIN(J48,MAX(-J65,0)) -> 0 | K68: =MIN(K48,MAX(-K65,0)) -> 0 | L68: =MIN(L48,MAX(-L65,0)) -> 0 | M68: =MIN(M48,MAX(-M65,0)) -> 0 | N68: =MIN(N48,MAX(-N65,0)) -> 0 | O68: =MIN(O48,MAX(-O65,0)) -> 0 | P68: =MIN(P48,MAX(-P65,0)) -> 0 | Q68: =MIN(Q48,MAX(-Q65,0)) -> 0 | R68: =MIN(R48,MAX(-R65,0)) -> 0 | S68: =MIN(S48,MAX(-S65,0)) -> -4.160085609e-12 | T68: =MIN(T48,MAX(-T65,0)) -> 0 | U68: =MIN(U48,MAX(-U65,0)) -> 0 | V68: =MIN(V48,MAX(-V65,0)) -> 0 | W68: =MIN(W48,MAX(-W65,0)) -> 0 | X68: =MIN(X48,MAX(-X65,0)) -> 0 | Y68: =MIN(Y48,MAX(-Y65,0)) -> 0 | Z68: =MIN(Z48,MAX(-Z65,0)) -> 0 | AA68: =MIN(AA48,MAX(-AA65,0)) -> 0 | AB68: =MIN(AB48,MAX(-AB65,0)) -> 0 | AC68: =MIN(AC48,MAX(-AC65,0)) -> 0 | AD68: =MIN(AD48,MAX(-AD65,0)) -> 0 | AE68: =MIN(AE48,MAX(-AE65,0)) -> 0 | AF68: =MIN(AF48,MAX(-AF65,0)) -> 0 | AG68: =MIN(AG48,MAX(-AG65,0)) -> 0 | AH68: =MIN(AH48,MAX(-AH65,0)) -> 0 | AI68: =MIN(AI48,MAX(-AI65,0)) -> 0 | AJ68: =MIN(AJ48,MAX(-AJ65,0)) -> 0 | AK68: =MIN(AK48,MAX(-AK65,0)) -> 0 | AL68: =MIN(AL48,MAX(-AL65,0)) -> 0 | AM68: =MIN(AM48,MAX(-AM65,0)) -> 0 | AN68: =MIN(AN48,MAX(-AN65,0)) -> 0 | AO68: =MIN(AO48,MAX(-AO65,0)) -> 0 | AP68: =MIN(AP48,MAX(-AP65,0)) -> 0 | AQ68: =MIN(AQ48,MAX(-AQ65,0)) -> 0 | AR68: =MIN(AR48,MAX(-AR65,0)) -> 0 | AS68: =MIN(AS48,MAX(-AS65,0)) -> 0 | AT68: =MIN(AT48,MAX(-AT65,0)) -> 0 | AU68: =MIN(AU48,MAX(-AU65,0)) -> 0 | AV68: =MIN(AV48,MAX(-AV65,0)) -> 0
D69: Net Cash Flow | H69: =H65-H67+H68+H66 -> 88.58569406 | I69: =I65-I67+I68+I66 -> 89.95605186 | J69: 91.3402538 | K69: 92.73843972 | L69: 94.15075092 | M69: 95.57733033 | N69: 97.01834592 | O69: 98.476302 | P69: 100.1848465 | Q69: 125.2595225 | R69: 125.1254533 | S69: 125 | T69: 125 | U69: 125 | V69: 125 | W69: 125 | X69: 125 | Y69: 125 | Z69: 125 | AA69: 125 | AB69: 125 | AC69: 125 | AD69: 125 | AE69: 125 | AF69: 125 | AG69: 125 | AH69: 125 | AI69: 125.0000002 | AJ69: 124.9999999 | AK69: 124.9999996 | AL69: 125.0000008 | AM69: 125.0000006 | AN69: 124.9999968 | AO69: 125.0000003 | AP69: 125 | AQ69: 125.0000001 | AR69: 125 | AS69: 124.9999996 | AT69: 125.0000003 | AU69: 125.000001 | AV69: -2.116976415e-06
C70: Less: Sweep | E70: =E15 -> 0.5 | H70: =MIN(H41-H42,MAX(H69,0)*$E$70) -> 44.29284703 | I70: =MIN(I41-I42,MAX(I69,0)*$E$70) -> 44.97802593 | J70: =MIN(J41-J42,MAX(J69,0)*$E$70) -> 45.6701269 | K70: =MIN(K41-K42,MAX(K69,0)*$E$70) -> 46.36921986 | L70: =MIN(L41-L42,MAX(L69,0)*$E$70) -> 47.07537546 | M70: =MIN(M41-M42,MAX(M69,0)*$E$70) -> 47.78866516 | N70: =MIN(N41-N42,MAX(N69,0)*$E$70) -> 48.50917296 | O70: =MIN(O41-O42,MAX(O69,0)*$E$70) -> 49.238151 | P70: =MIN(P41-P42,MAX(P69,0)*$E$70) -> 50.09242326 | Q70: =MIN(Q41-Q42,MAX(Q69,0)*$E$70) -> 62.62976123 | R70: =MIN(R41-R42,MAX(R69,0)*$E$70) -> 54.5327018 | S70: =MIN(S41-S42,MAX(S69,0)*$E$70) -> 0 | T70: =MIN(T41-T42,MAX(T69,0)*$E$70) -> 0 | U70: =MIN(U41-U42,MAX(U69,0)*$E$70) -> 0 | V70: =MIN(V41-V42,MAX(V69,0)*$E$70) -> 0 | W70: =MIN(W41-W42,MAX(W69,0)*$E$70) -> 0 | X70: =MIN(X41-X42,MAX(X69,0)*$E$70) -> 0 | Y70: =MIN(Y41-Y42,MAX(Y69,0)*$E$70) -> 0 | Z70: =MIN(Z41-Z42,MAX(Z69,0)*$E$70) -> 0 | AA70: =MIN(AA41-AA42,MAX(AA69,0)*$E$70) -> 0 | AB70: =MIN(AB41-AB42,MAX(AB69,0)*$E$70) -> 0 | AC70: =MIN(AC41-AC42,MAX(AC69,0)*$E$70) -> 0 | AD70: =MIN(AD41-AD42,MAX(AD69,0)*$E$70) -> 0 | AE70: =MIN(AE41-AE42,MAX(AE69,0)*$E$70) -> 0 | AF70: =MIN(AF41-AF42,MAX(AF69,0)*$E$70) -> 0 | AG70: =MIN(AG41-AG42,MAX(AG69,0)*$E$70) -> 0 | AH70: =MIN(AH41-AH42,MAX(AH69,0)*$E$70) -> 0 | AI70: =MIN(AI41-AI42,MAX(AI69,0)*$E$70) -> 0 | AJ70: =MIN(AJ41-AJ42,MAX(AJ69,0)*$E$70) -> 0 | AK70: =MIN(AK41-AK42,MAX(AK69,0)*$E$70) -> 0 | AL70: =MIN(AL41-AL42,MAX(AL69,0)*$E$70) -> 0 | AM70: =MIN(AM41-AM42,MAX(AM69,0)*$E$70) -> 0 | AN70: =MIN(AN41-AN42,MAX(AN69,0)*$E$70) -> 0 | AO70: =MIN(AO41-AO42,MAX(AO69,0)*$E$70) -> 0 | AP70: =MIN(AP41-AP42,MAX(AP69,0)*$E$70) -> 0 | AQ70: =MIN(AQ41-AQ42,MAX(AQ69,0)*$E$70) -> 0 | AR70: =MIN(AR41-AR42,MAX(AR69,0)*$E$70) -> 0 | AS70: =MIN(AS41-AS42,MAX(AS69,0)*$E$70) -> 0 | AT70: =MIN(AT41-AT42,MAX(AT69,0)*$E$70) -> 0 | AU70: =MIN(AU41-AU42,MAX(AU69,0)*$E$70) -> 0 | AV70: =MIN(AV41-AV42,MAX(AV69,0)*$E$70) -> 0
D71: Dividends | H71: =H69-H70 -> 44.29284703 | I71: =I69-I70 -> 44.97802593 | J71: 45.6701269 | K71: 46.36921986 | L71: 47.07537546 | M71: 47.78866516 | N71: 48.50917296 | O71: 49.238151 | P71: 50.09242326 | Q71: 62.62976123 | R71: 70.59275147 | S71: 125 | T71: 125 | U71: 125 | V71: 125 | W71: 125 | X71: 125 | Y71: 125 | Z71: 125 | AA71: 125 | AB71: 125 | AC71: 125 | AD71: 125 | AE71: 125 | AF71: 125 | AG71: 125 | AH71: 125 | AI71: 125.0000002 | AJ71: 124.9999999 | AK71: 124.9999996 | AL71: 125.0000008 | AM71: 125.0000006 | AN71: 124.9999968 | AO71: 125.0000003 | AP71: 125 | AQ71: 125.0000001 | AR71: 125 | AS71: 124.9999996 | AT71: 125.0000003 | AU71: 125.000001 | AV71: -2.116976415e-06
D73: Equity CF | G73: =-G36 -> -577.7023784 | H73: =H71 -> 44.29284703 | I73: =I71 -> 44.97802593 | J73: 45.6701269 | K73: 46.36921986 | L73: 47.07537546 | M73: 47.78866516 | N73: 48.50917296 | O73: 49.238151 | P73: 50.09242326 | Q73: 62.62976123 | R73: 70.59275147 | S73: 125 | T73: 125 | U73: 125 | V73: 125 | W73: 125 | X73: 125 | Y73: 125 | Z73: 125 | AA73: 125 | AB73: 125 | AC73: 125 | AD73: 125 | AE73: 125 | AF73: 125 | AG73: 125 | AH73: 125 | AI73: 125.0000002 | AJ73: 124.9999999 | AK73: 124.9999996 | AL73: 125.0000008 | AM73: 125.0000006 | AN73: 124.9999968 | AO73: 125.0000003 | AP73: 125 | AQ73: 125.0000001 | AR73: 125 | AS73: 124.9999996 | AT73: 125.0000003 | AU73: 125.000001 | AV73: -2.116976415e-06
G74: =IRR(73:73) -> 0.1198747417

Sheet DSRA No Cash Sweep
A1: Contents
B2: Key Points: No Problem without Sweep
B3: If there is a sweep, you do not know how much will be swept next year until the end of the year
B4: You should use the next year's fixed repayment in reducing the DSRA unless the sweep has reduced the opening balance
B5: The key point is that the DSRA account will not in reality be reduced for prospective reductions due to a cash sweep, although it
B6: should be reduced for previous reductions from the cash flow.
A9: Case 1 : No Cash Sweep with Level Repayment -- No problem with circularity when use next period debt service. Demonstrates where the problems come from
B11: Assumptions | F11: 1 | G11: 2 | H11: 3 | I11: 4 | J11: 5 | K11: 6 | L11: 7 | M11: 8 | N11: 9 | O11: 10
D12: CADS | F12: 200 | G12: 200 | H12: 200 | I12: 200 | J12: 200 | K12: 200 | L12: 200 | M12: 200 | N12: 200 | O12: 200
D13: Debt | E13: 1000
D14: Rate | E14: 0.05
D15: Sweep | E15: 0.5
C18: Debt
D19: Opening Balance | F19: =E22 -> 1000 | G19: 900 | H19: 800 | I19: 700 | J19: 600 | K19: 500 | L19: 400 | M19: 300 | N19: 200 | O19: 100
D20: Less: Fixed Repayment | F20: =$E$22/10 -> 100 | G20: 100 | H20: 100 | I20: 100 | J20: 100 | K20: 100 | L20: 100 | M20: 100 | N20: 100 | O20: 100
D21: Less: Sweep | F21: =F44 -> 0 | G21: 0 | H21: 0 | I21: 0 | J21: 0 | K21: 0 | L21: 0 | M21: 0 | N21: 0 | O21: 0
D22: Closing Balance | E22: =E13 -> 1000 | F22: =F19-F20-F21 -> 900 | G22: 800 | H22: 700 | I22: 600 | J22: 500 | K22: 400 | L22: 300 | M22: 200 | N22: 100 | O22: 0
D24: Int Rate | F24: =$E$14 -> 0.05 | G24: 0.05 | H24: 0.05 | I24: 0.05 | J24: 0.05 | K24: 0.05 | L24: 0.05 | M24: 0.05 | N24: 0.05 | O24: 0.05
D25: Interest Expense | F25: =F24*F19 -> 50 | G25: 45 | H25: 40 | I25: 35 | J25: 30 | K25: 25 | L25: 20 | M25: 15 | N25: 10 | O25: 5
C27: DSRA Balance
D28: This Period DS | F28: =F25+F20+F21 -> 150 | G28: 145 | H28: 140 | I28: 135 | J28: 130 | K28: 125 | L28: 120 | M28: 115 | N28: 110 | O28: 105
D29: Next Period DS | E29: =F28 -> 150 | F29: 145 | G29: 140 | H29: 135 | I29: 130 | J29: 125 | K29: 120 | L29: 115 | M29: 110 | N29: 105 | O29: 0
D30: OB | E30: =E33 -> 0 | F30: 150 | G30: 145 | H30: 140 | I30: 135 | J30: 130 | K30: 125 | L30: 120 | M30: 115 | N30: 110 | O30: 105
D31: Required Additional DSRA Balance | E31: =E29-E30 -> 150 | F31: -5 | G31: -5 | H31: -5 | I31: -5 | J31: -5 | K31: -5 | L31: -5 | M31: -5 | N31: -5 | O31: -105
D33: OB | F33: =E35 -> 150 | G33: 145 | H33: 140 | I33: 135 | J33: 130 | K33: 125 | L33: 120 | M33: 115 | N33: 110 | O33: 105
D34: Top-up from Above | F34: =F31 -> -5 | G34: -5 | H34: -5 | I34: -5 | J34: -5 | K34: -5 | L34: -5 | M34: -5 | N34: -5 | O34: -105
D35: CB | E35: =E31 -> 150 | F35: =F33+F34 -> 145 | G35: 140 | H35: 135 | I35: 130 | J35: 125 | K35: 120 | L35: 115 | M35: 110 | N35: 105 | O35: 0
C38: Cash Flow
D39: CADS | F39: =F12 -> 200 | G39: 200 | H39: 200 | I39: 200 | J39: 200 | K39: 200 | L39: 200 | M39: 200 | N39: 200 | O39: 200
D40: Add: Top-up | F40: =F34 -> -5 | G40: -5 | H40: -5 | I40: -5 | J40: -5 | K40: -5 | L40: -5 | M40: -5 | N40: -5 | O40: -105
D41: Less: Interest | F41: =F25 -> 50 | G41: 45 | H41: 40 | I41: 35 | J41: 30 | K41: 25 | L41: 20 | M41: 15 | N41: 10 | O41: 5
D42: Less: Fixed Repayment | F42: =F20 -> 100 | G42: 100 | H42: 100 | I42: 100 | J42: 100 | K42: 100 | L42: 100 | M42: 100 | N42: 100 | O42: 100
D43: Cash Flow for Sweep | F43: =F39-F40-F41-F42 -> 55 | G43: 60 | H43: 65 | I43: 70 | J43: 75 | K43: 80 | L43: 85 | M43: 90 | N43: 95 | O43: 200
D44: Cash Flow Sweep
C46: Fixed | F46: =F42 -> 100 | G46: 100 | H46: 100 | I46: 100 | J46: 100 | K46: 100 | L46: 100 | M46: 100 | N46: 100 | O46: 100

Sheet DSRA with Sweep
A3: Case 2: Cash Sweep Included with Level Payment -- circularity can be avoided making a separate interest and repayment calculation
C5: Debt
D6: OB | F6: =E9 -> 1000 | G6: 872.5 | H6: 741.125 | I6: 606.36875 | J6: 468.1590625 | K6: 326.4077969 | L6: 181.0242102 | M6: 31.91522574 | N6: 0 | O6: 0
D7: Less: Fixed | F7: =MIN('DSRA No Cash Sweep'!$E$22/10,F6) -> 100 | G7: =MIN('DSRA No Cash Sweep'!$E$22/10,G6) -> 100 | H7: =MIN('DSRA No Cash Sweep'!$E$22/10,H6) -> 100 | I7: =MIN('DSRA No Cash Sweep'!$E$22/10,I6) -> 100 | J7: =MIN('DSRA No Cash Sweep'!$E$22/10,J6) -> 100 | K7: =MIN('DSRA No Cash Sweep'!$E$22/10,K6) -> 100 | L7: =MIN('DSRA No Cash Sweep'!$E$22/10,L6) -> 100 | M7: =MIN('DSRA No Cash Sweep'!$E$22/10,M6) -> 31.91522574 | N7: =MIN('DSRA No Cash Sweep'!$E$22/10,N6) -> 0 | O7: =MIN('DSRA No Cash Sweep'!$E$22/10,O6) -> 0
D8: Less: Sweep | F8: =F36 -> 27.5 | G8: 31.375 | H8: 34.75625 | I8: 38.2096875 | J8: 41.75126563 | K8: 45.38358672 | L8: 49.10898441 | M8: 0 | N8: 0 | O8: 0
D9: CB | E9: ='DSRA No Cash Sweep'!E13 -> 1000 | F9: =F6-F7-F8 -> 872.5 | G9: 741.125 | H9: 606.36875 | I9: 468.1590625 | J9: 326.4077969 | K9: 181.0242102 | L9: 31.91522574 | M9: 0 | N9: 0 | O9: 0
D11: Interest Rate | F11: ='DSRA No Cash Sweep'!$E$14 -> 0.05 | G11: ='DSRA No Cash Sweep'!$E$14 -> 0.05 | H11: ='DSRA No Cash Sweep'!$E$14 -> 0.05 | I11: ='DSRA No Cash Sweep'!$E$14 -> 0.05 | J11: ='DSRA No Cash Sweep'!$E$14 -> 0.05 | K11: ='DSRA No Cash Sweep'!$E$14 -> 0.05 | L11: ='DSRA No Cash Sweep'!$E$14 -> 0.05 | M11: ='DSRA No Cash Sweep'!$E$14 -> 0.05 | N11: ='DSRA No Cash Sweep'!$E$14 -> 0.05 | O11: ='DSRA No Cash Sweep'!$E$14 -> 0.05
D12: Interest Expense on OB | F12: =F11*F6 -> 50 | G12: 43.625 | H12: 37.05625 | I12: 30.3184375 | J12: 23.40795313 | K12: 16.32038984 | L12: 9.051210508 | M12: 1.595761287 | N12: 0 | O12: 0
C14: Debt Service Calculation
D15: This Period DS | F15: =F12+F7+F8 -> 177.5 | G15: 175 | H15: 171.8125 | I15: 168.528125 | J15: 165.1592188 | K15: 161.7039766 | L15: 158.1601949 | M15: 33.51098703 | N15: 0 | O15: 0
D16: Current Interest | F16: =F9*F11+F7*F11 -> 48.625 | G16: 42.05625 | H16: 35.3184375 | I16: 28.40795313 | J16: 21.32038984 | K16: 14.05121051 | L16: 6.595761287 | M16: 1.595761287 | N16: 0 | O16: 0
D17: Next Interest | E17: =E9*F11 -> 50 | F17: =(F6-F7)*F11 -> 45 | G17: 38.625 | H17: 32.05625 | I17: 25.3184375 | J17: 18.40795313 | K17: 11.32038984 | L17: 4.051210508 | M17: 0 | N17: 0 | O17: 0
D18: Next Fixed Repayments | E18: =F7 -> 100 | F18: =MIN('DSRA No Cash Sweep'!G46,F7) -> 100 | G18: =MIN('DSRA No Cash Sweep'!H46,G7) -> 100 | H18: =MIN('DSRA No Cash Sweep'!I46,H7) -> 100 | I18: =MIN('DSRA No Cash Sweep'!J46,I7) -> 100 | J18: =MIN('DSRA No Cash Sweep'!K46,J7) -> 100 | K18: =MIN('DSRA No Cash Sweep'!L46,K7) -> 100 | L18: =MIN('DSRA No Cash Sweep'!M46,L7) -> 100 | M18: =MIN('DSRA No Cash Sweep'!N46,M7) -> 31.91522574 | N18: =MIN('DSRA No Cash Sweep'!O46,N7) -> 0 | O18: =MIN('DSRA No Cash Sweep'!P46,O7) -> 0
C20: DSRA Required Balance
D21: Next Period DS | E21: =E17+E18 -> 150 | F21: 145 | G21: 138.625 | H21: 132.05625 | I21: 125.3184375 | J21: 118.4079531 | K21: 111.3203898 | L21: 104.0512105 | M21: 31.91522574 | N21: 0 | O21: 0
D22: OB | E22: =E25 -> 0 | F22: 150 | G22: 145 | H22: 138.625 | I22: 132.05625 | J22: 125.3184375 | K22: 118.4079531 | L22: 111.3203898 | M22: 104.0512105 | N22: 31.91522574 | O22: 0
D23: Required Balance | E23: =E21-E22 -> 150 | F23: -5 | G23: -6.375 | H23: -6.56875 | I23: -6.7378125 | J23: -6.910484375 | K23: -7.087563281 | L23: -7.269179336 | M23: -72.13598477 | N23: -31.91522574 | O23: 0
D25: OB | F25: =E27 -> 150 | G25: 145 | H25: 138.625 | I25: 132.05625 | J25: 125.3184375 | K25: 118.4079531 | L25: 111.3203898 | M25: 104.0512105 | N25: 31.91522574 | O25: 0
D26: Top-up | F26: =F23 -> -5 | G26: -6.375 | H26: -6.56875 | I26: -6.7378125 | J26: -6.910484375 | K26: -7.087563281 | L26: -7.269179336 | M26: -72.13598477 | N26: -31.91522574 | O26: 0
D27: CB | E27: =E23 -> 150 | F27: =F25+F26 -> 145 | G27: 138.625 | H27: 132.05625 | I27: 125.3184375 | J27: 118.4079531 | K27: 111.3203898 | L27: 104.0512105 | M27: 31.91522574 | N27: 0 | O27: 0
C30: Cash Flow
D31: CADS | F31: ='DSRA No Cash Sweep'!F12 -> 200 | G31: ='DSRA No Cash Sweep'!G12 -> 200 | H31: ='DSRA No Cash Sweep'!H12 -> 200 | I31: ='DSRA No Cash Sweep'!I12 -> 200 | J31: ='DSRA No Cash Sweep'!J12 -> 200 | K31: ='DSRA No Cash Sweep'!K12 -> 200 | L31: ='DSRA No Cash Sweep'!L12 -> 200 | M31: ='DSRA No Cash Sweep'!M12 -> 200 | N31: ='DSRA No Cash Sweep'!N12 -> 200 | O31: ='DSRA No Cash Sweep'!O12 -> 200
D32: Less: Top-up | F32: =F26 -> -5 | G32: -6.375 | H32: -6.56875 | I32: -6.7378125 | J32: -6.910484375 | K32: -7.087563281 | L32: -7.269179336 | M32: -72.13598477 | N32: -31.91522574 | O32: 0
D33: Less: Interest | F33: =F12 -> 50 | G33: 43.625 | H33: 37.05625 | I33: 30.3184375 | J33: 23.40795313 | K33: 16.32038984 | L33: 9.051210508 | M33: 1.595761287 | N33: 0 | O33: 0
D34: Less: Fixed Repayment | F34: =F7 -> 100 | G34: 100 | H34: 100 | I34: 100 | J34: 100 | K34: 100 | L34: 100 | M34: 31.91522574 | N34: 0 | O34: 0
D35: Cash Flow for Sweep | F35: =F31-F32-F33-F34 -> 55 | G35: 62.75 | H35: 69.5125 | I35: 76.419375 | J35: 83.50253125 | K35: 90.76717344 | L35: 98.21796883 | M35: 238.6249977 | N35: 231.9152257 | O35: 200
D36: Cash Flow Sweep | F36: =MIN(F35*'DSRA No Cash Sweep'!$E$15,F6-F7) -> 27.5 | G36: =MIN(G35*'DSRA No Cash Sweep'!$E$15,G6-G7) -> 31.375 | H36: =MIN(H35*'DSRA No Cash Sweep'!$E$15,H6-H7) -> 34.75625 | I36: =MIN(I35*'DSRA No Cash Sweep'!$E$15,I6-I7) -> 38.2096875 | J36: =MIN(J35*'DSRA No Cash Sweep'!$E$15,J6-J7) -> 41.75126563 | K36: =MIN(K35*'DSRA No Cash Sweep'!$E$15,K6-K7) -> 45.38358672 | L36: =MIN(L35*'DSRA No Cash Sweep'!$E$15,L6-L7) -> 49.10898441 | M36: =MIN(M35*'DSRA No Cash Sweep'!$E$15,M6-M7) -> 0 | N36: =MIN(N35*'DSRA No Cash Sweep'!$E$15,N6-N7) -> 0 | O36: =MIN(O35*'DSRA No Cash Sweep'!$E$15,O6-O7) -> 0
B40: Repayment = CADS/DSCR - Int
A42: Case 3: Sculpted without cash sweep and without top-up problem -- demonstrates that cannot solve top-up problem unless use the backwards menthod
C44: Target DSCR | E44: 1.6
C47: EBITDA | F47: =F31 -> 200 | G47: =F47*1.02 -> 204 | H47: 208.08 | I47: 212.2416 | J47: 216.486432 | K47: 220.8161606 | L47: 225.2324839 | M47: 229.7371335 | N47: 234.3318762 | O47: 239.0185137
C48: Less: DSRA Top-up
C49: Total CADS | F49: =F47-F48 -> 200 | G49: 204 | H49: 208.08 | I49: 212.2416 | J49: 216.486432 | K49: 220.8161606 | L49: 225.2324839 | M49: 229.7371335 | N49: 234.3318762 | O49: 239.0185137
C51: Target DSCR | F51: =E44 -> 1.6 | G51: =F51 -> 1.6 | H51: 1.6 | I51: 1.6 | J51: 1.6 | K51: 1.6 | L51: 1.6 | M51: 1.6 | N51: 1.6 | O51: 1.6
C52: Required Debt Service | F52: =F49/F51 -> 125 | G52: 127.5 | H52: 130.05 | I52: 132.651 | J52: 135.30402 | K52: 138.0101004 | L52: 140.7703024 | M52: 143.5857085 | N52: 146.4574226 | O52: 149.3865711
C54: Alternative | F54: =F49/F51 -> 125 | G54: =G47/G51 -> 127.5 | H54: 130.05 | I54: 132.651 | J54: 135.30402 | K54: 138.0101004 | L54: 140.7703024 | M54: 143.5857085 | N54: 146.4574226 | O54: 149.3865711
C56: Debt
D57: OB | F57: =E60 -> 1048.513207 | G57: 975.9388669 | H57: 897.2358102 | I57: 812.0476007 | J57: 719.9989808 | K57: 620.6949098 | L57: 513.7195549 | M57: 398.6352302 | N57: 274.9812833 | O57: 142.2729248
D58: Less: Fixed | F58: =F52-F63 -> 72.57433967 | G58: 78.70305666 | H58: 85.18820949 | I58: 92.04861996 | J58: 99.30407096 | K58: 106.9753549 | L58: 115.0843247 | M58: 123.6539469 | N58: 132.7083585 | O58: 142.2729248
D59: Less: Sweep
D60: CB | E60: 1048.513207 | F60: =F57-F58-F59 -> 975.9388669 | G60: 897.2358102 | H60: 812.0476007 | I60: 719.9989808 | J60: 620.6949098 | K60: 513.7195549 | L60: 398.6352302 | M60: 274.9812833 | N60: 142.2729248 | O60: -9.379164112e-13
D62: Interest Rate | F62: ='DSRA No Cash Sweep'!$E$14 -> 0.05 | G62: ='DSRA No Cash Sweep'!$E$14 -> 0.05 | H62: ='DSRA No Cash Sweep'!$E$14 -> 0.05 | I62: ='DSRA No Cash Sweep'!$E$14 -> 0.05 | J62: ='DSRA No Cash Sweep'!$E$14 -> 0.05 | K62: ='DSRA No Cash Sweep'!$E$14 -> 0.05 | L62: ='DSRA No Cash Sweep'!$E$14 -> 0.05 | M62: ='DSRA No Cash Sweep'!$E$14 -> 0.05 | N62: ='DSRA No Cash Sweep'!$E$14 -> 0.05 | O62: ='DSRA No Cash Sweep'!$E$14 -> 0.05
D63: Interest Expense on OB | F63: =F62*F57 -> 52.42566033 | G63: 48.79694334 | H63: 44.86179051 | I63: 40.60238004 | J63: 35.99994904 | K63: 31.03474549 | L63: 25.68597775 | M63: 19.93176151 | N63: 13.74906416 | O63: 7.113646242
C65: Debt Service Calculation
D66: This Period DS | F66: =F63+F58+F59 -> 125 | G66: 127.5 | H66: 130.05 | I66: 132.651 | J66: 135.30402 | K66: 138.0101004 | L66: 140.7703024 | M66: 143.5857085 | N66: 146.4574226 | O66: 149.3865711
D67: Current Interest | F67: =F60*F62+F58*F62 -> 52.42566033 | G67: 48.79694334 | H67: 44.86179051 | I67: 40.60238004 | J67: 35.99994904 | K67: 31.03474549 | L67: 25.68597775 | M67: 19.93176151 | N67: 13.74906416 | O67: 7.113646242
D68: Next Interest | E68: =E60*F62 -> 52.42566033 | F68: =(F57-F58)*F62 -> 48.79694334 | G68: 44.86179051 | H68: 40.60238004 | I68: 35.99994904 | J68: 31.03474549 | K68: 25.68597775 | L68: 19.93176151 | M68: 13.74906416 | N68: 7.113646242 | O68: -4.689582056e-14
D69: Next Fixed Repayments | E69: =F58 -> 72.57433967 | F69: =MIN(F57,G58) -> 78.70305666 | G69: 85.18820949 | H69: 92.04861996 | I69: 99.30407096 | J69: 106.9753549 | K69: 115.0843247 | L69: 123.6539469 | M69: 132.7083585 | N69: 142.2729248 | O69: 142.2729248
C71: DSRA Required Balance
D72: Next Period DS | E72: =E68+E69 -> 125 | F72: 127.5 | G72: 130.05 | H72: 132.651 | I72: 135.30402 | J72: 138.0101004 | K72: 140.7703024 | L72: 143.5857085 | M72: 146.4574226 | N72: 149.3865711 | O72: 142.2729248
D73: OB | E73: =E76 -> 0 | F73: 125 | G73: 127.5 | H73: 130.05 | I73: 132.651 | J73: 135.30402 | K73: 138.0101004 | L73: 140.7703024 | M73: 143.5857085 | N73: 146.4574226 | O73: 149.3865711
D74: Required Change | E74: =E72-E73 -> 125 | F74: 2.5 | G74: 2.55 | H74: 2.601 | I74: 2.65302 | J74: 2.7060804 | K74: 2.760202008 | L74: 2.815406048 | M74: 2.871714169 | N74: 2.929148453 | O74: -7.113646242
D76: OB | F76: =E78 -> 125 | G76: 127.5 | H76: 130.05 | I76: 132.651 | J76: 135.30402 | K76: 138.0101004 | L76: 140.7703024 | M76: 143.5857085 | N76: 146.4574226 | O76: 149.3865711
D77: Top-up | F77: =F74 -> 2.5 | G77: 2.55 | H77: 2.601 | I77: 2.65302 | J77: 2.7060804 | K77: 2.760202008 | L77: 2.815406048 | M77: 2.871714169 | N77: 2.929148453 | O77: -7.113646242
D78: CB | E78: =E74 -> 125 | F78: =F76+F77 -> 127.5 | G78: 130.05 | H78: 132.651 | I78: 135.30402 | J78: 138.0101004 | K78: 140.7703024 | L78: 143.5857085 | M78: 146.4574226 | N78: 149.3865711 | O78: 142.2729248
C81: Cash Flow
D82: EBITDA | F82: =F47 -> 200 | G82: 204 | H82: 208.08 | I82: 212.2416 | J82: 216.486432 | K82: 220.8161606 | L82: 225.2324839 | M82: 229.7371335 | N82: 234.3318762 | O82: 239.0185137
D83: Less: Top-up | F83: =F77 -> 2.5 | G83: 2.55 | H83: 2.601 | I83: 2.65302 | J83: 2.7060804 | K83: 2.760202008 | L83: 2.815406048 | M83: 2.871714169 | N83: 2.929148453 | O83: -7.113646242
D84: Less: Interest | F84: =F63 -> 52.42566033 | G84: 48.79694334 | H84: 44.86179051 | I84: 40.60238004 | J84: 35.99994904 | K84: 31.03474549 | L84: 25.68597775 | M84: 19.93176151 | N84: 13.74906416 | O84: 7.113646242
D85: Less: Fixed Repayment | F85: =F58 -> 72.57433967 | G85: 78.70305666 | H85: 85.18820949 | I85: 92.04861996 | J85: 99.30407096 | K85: 106.9753549 | L85: 115.0843247 | M85: 123.6539469 | N85: 132.7083585 | O85: 142.2729248
D86: Cash Flow for Sweep | F86: =F82-F83-F84-F85 -> 72.5 | G86: 73.95 | H86: 75.429 | I86: 76.93758 | J86: 78.4763316 | K86: 80.04585823 | L86: 81.6467754 | M86: 83.2797109 | N86: 84.94530512 | O86: 96.74558889
D87: Cash Flow Sweep
D89: DSCR Check
D90: EBiTDA | F90: =F82 -> 200 | G90: 204 | H90: 208.08 | I90: 212.2416 | J90: 216.486432 | K90: 220.8161606 | L90: 225.2324839 | M90: 229.7371335 | N90: 234.3318762 | O90: 239.0185137
D91: Less: Top-up
D92: CADS | F92: =F90-F91 -> 200 | G92: 204 | H92: 208.08 | I92: 212.2416 | J92: 216.486432 | K92: 220.8161606 | L92: 225.2324839 | M92: 229.7371335 | N92: 234.3318762 | O92: 239.0185137
D94: Debt Service | F94: =F66 -> 125 | G94: 127.5 | H94: 130.05 | I94: 132.651 | J94: 135.30402 | K94: 138.0101004 | L94: 140.7703024 | M94: 143.5857085 | N94: 146.4574226 | O94: 149.3865711
D96: DSCR | F96: =F92/F94 -> 1.6 | G96: 1.6 | H96: 1.6 | I96: 1.6 | J96: 1.6 | K96: 1.6 | L96: 1.6 | M96: 1.6 | N96: 1.6 | O96: 1.6
D97: DSCR Check | F97: =F96=F51 -> TRUE | G97: TRUE | H97: TRUE | I97: TRUE | J97: TRUE | K97: TRUE | L97: TRUE | M97: TRUE | N97: TRUE | O97: TRUE
A101: Case 4: Sculpted with cash sweep and without top-up problem - requires two step process with sculpting mode first
C103: Target DSCR | E103: 1.5
C104: Cash Sweep | E104: 0.5
C106: EBITDA | F106: =F47 -> 200 | G106: 204 | H106: 208.08 | I106: 212.2416 | J106: 216.486432 | K106: 220.8161606 | L106: 225.2324839 | M106: 229.7371335 | N106: 234.3318762 | O106: 239.0185137
C107: Less: DSRA Top-up
C108: Total CADS | F108: =F106-F107 -> 200 | G108: 204 | H108: 208.08 | I108: 212.2416 | J108: 216.486432 | K108: 220.8161606 | L108: 225.2324839 | M108: 229.7371335 | N108: 234.3318762 | O108: 239.0185137
C110: Target DSCR | F110: =$E$44 -> 1.6 | G110: 1.6 | H110: 1.6 | I110: 1.6 | J110: 1.6 | K110: 1.6 | L110: 1.6 | M110: 1.6 | N110: 1.6 | O110: 1.6
C111: Required Debt Service | F111: =F108/F110 -> 125 | G111: 127.5 | H111: 130.05 | I111: 132.651 | J111: 135.30402 | K111: 138.0101004 | L111: 140.7703024 | M111: 143.5857085 | N111: 146.4574226 | O111: 149.3865711
C113: Alternative | F113: =F108/F110 -> 125 | G113: =G106/G110 -> 127.5 | H113: 130.05 | I113: 132.651 | J113: 135.30402 | K113: 138.0101004 | L113: 140.7703024 | M113: 143.5857085 | N113: 146.4574226 | O113: 149.3865711
C115: Debt for sculpting mode: No sweep included
C116: Debt
D117: OB | F117: =E120 -> 1048.513207 | G117: 975.9388669 | H117: 897.2358102 | I117: 812.0476007 | J117: 719.9989808 | K117: 620.6949098 | L117: 513.7195549 | M117: 398.6352302 | N117: 274.9812833 | O117: 142.2729248
D118: Less: Fixed | F118: =F113-F123 -> 72.57433967 | G118: 78.70305666 | H118: 85.18820949 | I118: 92.04861996 | J118: 99.30407096 | K118: 106.9753549 | L118: 115.0843247 | M118: 123.6539469 | N118: 132.7083585 | O118: 142.2729248
D119: Less: Sweep
D120: CB | E120: =E60 -> 1048.513207 | F120: =F117-F118 -> 975.9388669 | G120: 897.2358102 | H120: 812.0476007 | I120: 719.9989808 | J120: 620.6949098 | K120: 513.7195549 | L120: 398.6352302 | M120: 274.9812833 | N120: 142.2729248 | O120: -9.379164112e-13
D122: Interest Rate | F122: =F132 -> 0.05 | G122: 0.05 | H122: 0.05 | I122: 0.05 | J122: 0.05 | K122: 0.05 | L122: 0.05 | M122: 0.05 | N122: 0.05 | O122: 0.05
D123: Interest Expense | F123: =F122*F117 -> 52.42566033 | G123: 48.79694334 | H123: 44.86179051 | I123: 40.60238004 | J123: 35.99994904 | K123: 31.03474549 | L123: 25.68597775 | M123: 19.93176151 | N123: 13.74906416 | O123: 7.113646242
C125: Debt used in cash flow; include cash sweep
C126: Debt
D127: OB | F127: =E130 -> 1118.414087 | G127: 1011.337269 | H127: 895.6816108 | I127: 771.8162313 | J127: 639.3261078 | K127: 497.7560116 | L127: 346.6276045 | M127: 185.4387671 | N127: 13.66244031 | O127: 0
D128: Less: Fixed | F128: =MIN(F118,F127) -> 72.57433967 | G128: 78.70305666 | H128: 85.18820949 | I128: 92.04861996 | J128: 99.30407096 | K128: 106.9753549 | L128: 115.0843247 | M128: 123.6539469 | N128: 13.66244031 | O128: 0
D129: Less: Sweep | F129: =F158 -> 34.50247799 | G129: 36.95260189 | H129: 38.67717003 | I129: 40.44150349 | J129: 42.26602521 | K129: 44.1530522 | L129: 46.10451276 | M129: 48.12237985 | N129: 0 | O129: 0
D130: CB | E130: 1118.414087 | F130: =F127-F128-F129 -> 1011.337269 | G130: 895.6816108 | H130: 771.8162313 | I130: 639.3261078 | J130: 497.7560116 | K130: 346.6276045 | L130: 185.4387671 | M130: 13.66244031 | N130: 0 | O130: 0
D132: Interest Rate | F132: ='DSRA No Cash Sweep'!$E$14 -> 0.05 | G132: ='DSRA No Cash Sweep'!$E$14 -> 0.05 | H132: ='DSRA No Cash Sweep'!$E$14 -> 0.05 | I132: ='DSRA No Cash Sweep'!$E$14 -> 0.05 | J132: ='DSRA No Cash Sweep'!$E$14 -> 0.05 | K132: ='DSRA No Cash Sweep'!$E$14 -> 0.05 | L132: ='DSRA No Cash Sweep'!$E$14 -> 0.05 | M132: ='DSRA No Cash Sweep'!$E$14 -> 0.05 | N132: ='DSRA No Cash Sweep'!$E$14 -> 0.05 | O132: ='DSRA No Cash Sweep'!$E$14 -> 0.05
D133: Interest Expense on OB | F133: =F132*F127 -> 55.92070435 | G133: 50.56686347 | H133: 44.78408054 | I133: 38.59081156 | J133: 31.96630539 | K133: 24.88780058 | L133: 17.33138023 | M133: 9.271938355 | N133: 0.6831220155 | O133: 0
C135: Debt Service Calculation
D136: This Period DS | F136: =F133+F128+F129 -> 162.997522 | G136: 166.222522 | H136: 168.6494601 | I136: 171.080935 | J136: 173.5364016 | K136: 176.0162077 | L136: 178.5202177 | M136: 181.0482651 | N136: 14.34556233 | O136: 0
D137: Current Interest | F137: =F127*F132 -> 55.92070435 | G137: =G130*G132+G128*G132 -> 48.71923337 | H137: 42.85022204 | I137: 36.56873639 | J137: 29.85300413 | K137: 22.68014797 | L137: 15.02615459 | M137: 6.865819363 | N137: 0.6831220155 | O137: 0
D138: Next Interest | E138: =E130*F132 -> 55.92070435 | F138: =(F127-F128)*F132 -> 52.29198737 | G138: 46.63171063 | H138: 40.52467006 | I138: 33.98838057 | J138: 27.00110184 | K138: 19.53903284 | L138: 11.57716399 | M138: 3.089241008 | N138: 0 | O138: 0
D139: Next Fixed Repayments | E139: =F118 -> 72.57433967 | F139: 78.70305666 | G139: 85.18820949 | H139: 92.04861996 | I139: 99.30407096 | J139: 106.9753549 | K139: 115.0843247 | L139: 123.6539469 | M139: 132.7083585 | N139: 142.2729248 | O139: 0
C141: DSRA Required Balance
D142: Next Period DS | E142: =E138+E139 -> 128.495044 | F142: 130.995044 | G142: 131.8199201 | H142: 132.57329 | I142: 133.2924515 | J142: 133.9764568 | K142: 134.6233575 | L142: 135.2311109 | M142: 135.7975995 | N142: 142.2729248 | O142: 0
D143: OB | E143: =E146 -> 0 | F143: 128.495044 | G143: 130.995044 | H143: 131.8199201 | I143: 132.57329 | J143: 133.2924515 | K143: 133.9764568 | L143: 134.6233575 | M143: 135.2311109 | N143: 135.7975995 | O143: 142.2729248
D144: Required Change | E144: =E142-E143 -> 128.495044 | F144: 2.5 | G144: 0.8248761005 | H144: 0.7533699056 | I144: 0.7191614983 | J144: 0.6840052256 | K144: 0.6469007474 | L144: 0.6077534381 | M144: 0.566488531 | N144: 6.475325368 | O144: -142.2729248
D146: OB | F146: =E148 -> 128.495044 | G146: 130.995044 | H146: 131.8199201 | I146: 132.57329 | J146: 133.2924515 | K146: 133.9764568 | L146: 134.6233575 | M146: 135.2311109 | N146: 135.7975995 | O146: 142.2729248
D147: Top-up | F147: =F144 -> 2.5 | G147: 0.8248761005 | H147: 0.7533699056 | I147: 0.7191614983 | J147: 0.6840052256 | K147: 0.6469007474 | L147: 0.6077534381 | M147: 0.566488531 | N147: 6.475325368 | O147: -142.2729248
D148: CB | E148: =E144 -> 128.495044 | F148: =F146+F147 -> 130.995044 | G148: 131.8199201 | H148: 132.57329 | I148: 133.2924515 | J148: 133.9764568 | K148: 134.6233575 | L148: 135.2311109 | M148: 135.7975995 | N148: 142.2729248 | O148: 0
C150: Cash Sweep Percent | F150: =E104 -> 0.5 | G150: =F150 -> 0.5 | H150: 0.5 | I150: 0.5 | J150: 0.5 | K150: 0.5 | L150: 0.5 | M150: 0.5 | N150: 0.5 | O150: 0.5
C152: Cash Flow
D153: EBITDA | F153: =F106 -> 200 | G153: 204 | H153: 208.08 | I153: 212.2416 | J153: 216.486432 | K153: 220.8161606 | L153: 225.2324839 | M153: 229.7371335 | N153: 234.3318762 | O153: 239.0185137
D154: Less: Top-up | F154: =F147 -> 2.5 | G154: 0.8248761005 | H154: 0.7533699056 | I154: 0.7191614983 | J154: 0.6840052256 | K154: 0.6469007474 | L154: 0.6077534381 | M154: 0.566488531 | N154: 6.475325368 | O154: -142.2729248
D155: Less: Interest | F155: =F133 -> 55.92070435 | G155: 50.56686347 | H155: 44.78408054 | I155: 38.59081156 | J155: 31.96630539 | K155: 24.88780058 | L155: 17.33138023 | M155: 9.271938355 | N155: 0.6831220155 | O155: 0
D156: Less: Fixed Repayment | F156: =F128 -> 72.57433967 | G156: 78.70305666 | H156: 85.18820949 | I156: 92.04861996 | J156: 99.30407096 | K156: 106.9753549 | L156: 115.0843247 | M156: 123.6539469 | N156: 13.66244031 | O156: 0
D157: Cash Flow for Sweep | F157: =F153-F154-F155-F156 -> 69.00495598 | G157: 73.90520378 | H157: 77.35434007 | I157: 80.88300698 | J157: 84.53205042 | K157: 88.3061044 | L157: 92.20902553 | M157: 96.2447597 | N157: 213.5109885 | O157: 381.2914386
D158: Cash Flow Sweep | F158: =MIN(F157*'DSRA No Cash Sweep'!$E$15,F127-F128) -> 34.50247799 | G158: =MIN(G157*'DSRA No Cash Sweep'!$E$15,G127-G128) -> 36.95260189 | H158: =MIN(H157*'DSRA No Cash Sweep'!$E$15,H127-H128) -> 38.67717003 | I158: =MIN(I157*'DSRA No Cash Sweep'!$E$15,I127-I128) -> 40.44150349 | J158: =MIN(J157*'DSRA No Cash Sweep'!$E$15,J127-J128) -> 42.26602521 | K158: =MIN(K157*'DSRA No Cash Sweep'!$E$15,K127-K128) -> 44.1530522 | L158: =MIN(L157*'DSRA No Cash Sweep'!$E$15,L127-L128) -> 46.10451276 | M158: =MIN(M157*'DSRA No Cash Sweep'!$E$15,M127-M128) -> 48.12237985 | N158: =MIN(N157*'DSRA No Cash Sweep'!$E$15,N127-N128) -> 0 | O158: =MIN(O157*'DSRA No Cash Sweep'!$E$15,O127-O128) -> 0
D160: DSCR Check
D161: EBiTDA | F161: =F153 -> 200 | G161: 204 | H161: 208.08 | I161: 212.2416 | J161: 216.486432 | K161: 220.8161606 | L161: 225.2324839 | M161: 229.7371335 | N161: 234.3318762 | O161: 239.0185137
D162: Less: Top-up
D163: CADS | F163: =F161-F162 -> 200 | G163: 204 | H163: 208.08 | I163: 212.2416 | J163: 216.486432 | K163: 220.8161606 | L163: 225.2324839 | M163: 229.7371335 | N163: 234.3318762 | O163: 239.0185137
D165: Debt Service | F165: =E142 -> 128.495044 | G165: 130.995044 | H165: 131.8199201 | I165: 132.57329 | J165: 133.2924515 | K165: 133.9764568 | L165: 134.6233575 | M165: 135.2311109 | N165: 135.7975995 | O165: 142.2729248
D167: DSCR | F167: =IF(F165,F163/F165) -> 1.556480264 | G167: 1.557310824 | H167: 1.578517115 | I167: 1.600937866 | J167: 1.624146225 | K167: 1.648171373 | L167: 1.673056504 | M167: 1.698848231 | N167: 1.725596602 | O167: 1.68
D168: DSCR Check | F168: =F167=F110 -> FALSE | G168: FALSE | H168: FALSE | I168: FALSE | J168: FALSE | K168: FALSE | L168: FALSE | M168: FALSE | N168: FALSE | O168: FALSE
A172: Case 5: Sculpted with cash sweep and with top-up problem - requires two step process with sculpting mode first and also copy and paste macro
C174: Target DSCR | E174: =K174/100 -> 1.7 | K174: 170
C175: Cash Sweep | E175: 0
C177: EBITDA | F177: =F106 -> 200 | G177: 204 | H177: 208.08 | I177: 212.2416 | J177: 216.486432 | K177: 220.8161606 | L177: 225.2324839 | M177: 229.7371335 | N177: 234.3318762 | O177: 239.0185137
C178: Less: DSRA Top-up | F178: =F231 -> 2.666666667 | G178: 2.72 | H178: 2.7744 | I178: 2.829888 | J178: 2.88648576 | K178: 2.944215475 | L178: 3.003099785 | M178: 3.06316178 | N178: 3.124425016 | O178: 0
C179: Total CADS | F179: =F177-F178 -> 197.3333333 | G179: 201.28 | H179: 205.3056 | I179: 209.411712 | J179: 213.5999462 | K179: 217.8719452 | L179: 222.2293841 | M179: 226.6739717 | N179: 231.2074512 | O179: 239.0185137
C181: Target DSCR | F181: =$E$174 -> 1.7 | G181: 1.7 | H181: 1.7 | I181: 1.7 | J181: 1.7 | K181: 1.7 | L181: 1.7 | M181: 1.7 | N181: 1.7 | O181: 1.7
C182: Required Debt Service | F182: =F179/F181 -> 116.0784314 | G182: 118.4 | H182: 120.768 | I182: 123.18336 | J182: 125.6470272 | K182: 128.1599677 | L182: 130.7231671 | M182: 133.3376304 | N182: 136.004383 | O182: 140.5991257
C184: Alternative | F184: =F177/F181 -> 117.6470588 | G184: 120 | H184: 122.4 | I184: 124.848 | J184: 127.34496 | K184: 129.8918592 | L184: 132.4896964 | M184: 135.1394903 | N184: 137.8422801 | O184: 140.5991257
C186: Debt for sculpting mode: No sweep included
C187: Debt
D188: OB | F188: =E191 -> 1118.414087 | G188: 1056.687733 | H188: 989.5221191 | I188: 916.5982251 | J188: 837.5801364 | K188: 752.1141832 | L188: 659.8280331 | M188: 560.3297384 | N188: 453.206735 | O188: 338.0247916
D189: Less: Fixed | F189: =F184-F194 -> 61.72635447 | G189: 67.16561337 | H189: 72.92389404 | I189: 79.01808874 | J189: 85.46595318 | K189: 92.28615004 | L189: 99.49829473 | M189: 107.1230034 | N189: 115.1819434 | O189: 123.6978861
D190: Less: Sweep
D191: CB | E191: 1118.414087 | F191: =F188-F189 -> 1056.687733 | G191: 989.5221191 | H191: 916.5982251 | I191: 837.5801364 | J191: 752.1141832 | K191: 659.8280331 | L191: 560.3297384 | M191: 453.206735 | N191: 338.0247916 | O191: 214.3269055
D193: Interest Rate | F193: =F205 -> 0.05 | G193: 0.05 | H193: 0.05 | I193: 0.05 | J193: 0.05 | K193: 0.05 | L193: 0.05 | M193: 0.05 | N193: 0.05 | O193: 0.05
D194: Interest Expense | F194: =F193*F188 -> 55.92070435 | G194: 52.83438663 | H194: 49.47610596 | I194: 45.82991126 | J194: 41.87900682 | K194: 37.60570916 | L194: 32.99140166 | M194: 28.01648692 | N194: 22.66033675 | O194: 16.90123958
D195: Fixed Repayment
C198: Debt used in cash flow; include cash sweep
C199: Debt
D200: OB | F200: =E203 -> 1118.414087 | G200: 1056.687733 | H200: 989.5221191 | I200: 916.5982251 | J200: 837.5801364 | K200: 752.1141832 | L200: 659.8280331 | M200: 560.3297384 | N200: 453.206735 | O200: 338.0247916
D201: Less: Fixed | F201: =MIN(F189,F200) -> 61.72635447 | G201: 67.16561337 | H201: 72.92389404 | I201: 79.01808874 | J201: 85.46595318 | K201: 92.28615004 | L201: 99.49829473 | M201: 107.1230034 | N201: 115.1819434 | O201: 123.6978861
D202: Less: Sweep | F202: =F235 -> 0 | G202: 0 | H202: 0 | I202: 0 | J202: 0 | K202: 0 | L202: 0 | M202: 0 | N202: 0 | O202: 0
D203: CB | E203: =debt_bal3 -> 1118.414087 | F203: =F200-F201-F202 -> 1056.687733 | G203: 989.5221191 | H203: 916.5982251 | I203: 837.5801364 | J203: 752.1141832 | K203: 659.8280331 | L203: 560.3297384 | M203: 453.206735 | N203: 338.0247916 | O203: 214.3269055
D205: Interest Rate | F205: ='DSRA No Cash Sweep'!$E$14 -> 0.05 | G205: ='DSRA No Cash Sweep'!$E$14 -> 0.05 | H205: ='DSRA No Cash Sweep'!$E$14 -> 0.05 | I205: ='DSRA No Cash Sweep'!$E$14 -> 0.05 | J205: ='DSRA No Cash Sweep'!$E$14 -> 0.05 | K205: ='DSRA No Cash Sweep'!$E$14 -> 0.05 | L205: ='DSRA No Cash Sweep'!$E$14 -> 0.05 | M205: ='DSRA No Cash Sweep'!$E$14 -> 0.05 | N205: ='DSRA No Cash Sweep'!$E$14 -> 0.05 | O205: ='DSRA No Cash Sweep'!$E$14 -> 0.05
D206: Interest Expense on OB | F206: =F205*F200 -> 55.92070435 | G206: 52.83438663 | H206: 49.47610596 | I206: 45.82991126 | J206: 41.87900682 | K206: 37.60570916 | L206: 32.99140166 | M206: 28.01648692 | N206: 22.66033675 | O206: 16.90123958
C208: Debt Service Calculation
D209: This Period DS | F209: =F206+F201+F202 -> 117.6470588 | G209: 120 | H209: 122.4 | I209: 124.848 | J209: 127.34496 | K209: 129.8918592 | L209: 132.4896964 | M209: 135.1394903 | N209: 137.8422801 | O209: 140.5991257
D210: Current Interest | F210: =F200*F205 -> 55.92070435 | G210: =G203*G205+G201*G205 -> 52.83438663 | H210: 49.47610596 | I210: 45.82991126 | J210: 41.87900682 | K210: 37.60570916 | L210: 32.99140166 | M210: 28.01648692 | N210: 22.66033675 | O210: 16.90123958
D211: Next Interest | E211: =E203*F205 -> 55.92070435 | F211: =(F200-F201)*F205 -> 52.83438663 | G211: 49.47610596 | H211: 45.82991126 | I211: 41.87900682 | J211: 37.60570916 | K211: 32.99140166 | L211: 28.01648692 | M211: 22.66033675 | N211: 16.90123958 | O211: 10.71634528
D212: Next Fixed Repayments | E212: =F189 -> 61.72635447 | F212: 67.16561337 | G212: 72.92389404 | H212: 79.01808874 | I212: 85.46595318 | J212: 92.28615004 | K212: 99.49829473 | L212: 107.1230034 | M212: 115.1819434 | N212: 123.6978861 | O212: 0
C214: DSRA Required Balance
D215: Next Period DS | E215: =E211+E212 -> 117.6470588 | F215: 120 | G215: 122.4 | H215: 124.848 | I215: 127.34496 | J215: 129.8918592 | K215: 132.4896964 | L215: 135.1394903 | M215: 137.8422801 | N215: 140.5991257 | O215: 10.71634528
D216: Fixed DS next Period | E216: 133.3333333 | F216: 136 | G216: 138.72 | H216: 141.4944 | I216: 144.324288 | J216: 147.2107738 | K216: 150.1549892 | L216: 153.158089 | M216: 156.2212508 | N216: 159.3456758 | O216: 9.947598301e-15
D217: Difference | E217: =ABS(E215-E216) -> 15.68627451 | F217: 16 | G217: 16.32 | H217: 16.6464 | I217: 16.979328 | J217: 17.31891456 | K217: 17.66529285 | L217: 18.01859871 | M217: 18.37897068 | N217: 18.7465501 | O217: 10.71634528
D219: Total Difference | E219: =SUM(E217:O217) -> 182.4766747
D221: OB | E221: =E224 -> 0 | F221: 133.3333333 | G221: 136 | H221: 138.72 | I221: 141.4944 | J221: 144.324288 | K221: 147.2107738 | L221: 150.1549892 | M221: 153.158089 | N221: 156.2212508 | O221: 159.3456758
D222: Required Change | E222: =E216-E221 -> 133.3333333 | F222: 2.666666667 | G222: 2.72 | H222: 2.7744 | I222: 2.829888 | J222: 2.88648576 | K222: 2.944215475 | L222: 3.003099785 | M222: 3.06316178 | N222: 3.124425016 | O222: -159.3456758
D224: OB | F224: =E226 -> 133.3333333 | G224: 136 | H224: 138.72 | I224: 141.4944 | J224: 144.324288 | K224: 147.2107738 | L224: 150.1549892 | M224: 153.158089 | N224: 156.2212508 | O224: 159.3456758
D225: Top-up | F225: =F222 -> 2.666666667 | G225: 2.72 | H225: 2.7744 | I225: 2.829888 | J225: 2.88648576 | K225: 2.944215475 | L225: 3.003099785 | M225: 3.06316178 | N225: 3.124425016 | O225: -159.3456758
D226: CB | E226: =E222 -> 133.3333333 | F226: =F224+F225 -> 136 | G226: 138.72 | H226: 141.4944 | I226: 144.324288 | J226: 147.2107738 | K226: 150.1549892 | L226: 153.158089 | M226: 156.2212508 | N226: 159.3456758 | O226: 0
C229: Cash Flow
D230: EBITDA | F230: =F177 -> 200 | G230: 204 | H230: 208.08 | I230: 212.2416 | J230: 216.486432 | K230: 220.8161606 | L230: 225.2324839 | M230: 229.7371335 | N230: 234.3318762 | O230: 239.0185137
D231: Less: Top-up | F231: =F225 -> 2.666666667 | G231: 2.72 | H231: 2.7744 | I231: 2.829888 | J231: 2.88648576 | K231: 2.944215475 | L231: 3.003099785 | M231: 3.06316178 | N231: 3.124425016 | O231: -159.3456758
D232: Less: Interest | F232: =F206 -> 55.92070435 | G232: 52.83438663 | H232: 49.47610596 | I232: 45.82991126 | J232: 41.87900682 | K232: 37.60570916 | L232: 32.99140166 | M232: 28.01648692 | N232: 22.66033675 | O232: 16.90123958
D233: Less: Fixed Repayment | F233: =F201 -> 61.72635447 | G233: 67.16561337 | H233: 72.92389404 | I233: 79.01808874 | J233: 85.46595318 | K233: 92.28615004 | L233: 99.49829473 | M233: 107.1230034 | N233: 115.1819434 | O233: 123.6978861
D234: Cash Flow for Sweep | F234: =F230-F231-F232-F233 -> 79.68627451 | G234: 81.28 | H234: 82.9056 | I234: 84.563712 | J234: 86.25498624 | K234: 87.98008596 | L234: 89.73968768 | M234: 91.53448144 | N234: 93.36517107 | O234: 257.7650638
D235: Cash Flow Sweep | F235: =MIN(F234*$E$175,F200-F201) -> 0 | G235: 0 | H235: 0 | I235: 0 | J235: 0 | K235: 0 | L235: 0 | M235: 0 | N235: 0 | O235: 0
D237: DSCR Check
D238: EBiTDA | F238: =F230 -> 200 | G238: 204 | H238: 208.08 | I238: 212.2416 | J238: 216.486432 | K238: 220.8161606 | L238: 225.2324839 | M238: 229.7371335 | N238: 234.3318762 | O238: 239.0185137
D239: Less: Top-up | F239: =F231 -> 2.666666667 | G239: 2.72 | H239: 2.7744 | I239: 2.829888 | J239: 2.88648576 | K239: 2.944215475 | L239: 3.003099785 | M239: 3.06316178 | N239: 3.124425016 | O239: -159.3456758
D240: CADS | F240: =F238-F239 -> 197.3333333 | G240: 201.28 | H240: 205.3056 | I240: 209.411712 | J240: 213.5999462 | K240: 217.8719452 | L240: 222.2293841 | M240: 226.6739717 | N240: 231.2074512 | O240: 398.3641895
D242: Debt Service | F242: =E215 -> 117.6470588 | G242: 120 | H242: 122.4 | I242: 124.848 | J242: 127.34496 | K242: 129.8918592 | L242: 132.4896964 | M242: 135.1394903 | N242: 137.8422801 | O242: 140.5991257
D244: DSCR | F244: =IF(F242,F240/F242) -> 1.677333333 | G244: 1.677333333 | H244: 1.677333333 | I244: 1.677333333 | J244: 1.677333333 | K244: 1.677333333 | L244: 1.677333333 | M244: 1.677333333 | N244: 1.677333333 | O244: 2.833333333
D245: DSCR Check | F245: =F244=F181 -> FALSE | G245: FALSE | H245: FALSE | I245: FALSE | J245: FALSE | K245: FALSE | L245: FALSE | M245: FALSE | N245: FALSE | O245: FALSE
F247: =E174 -> 1.7
A251: Artificial Case with only Interest in DSRA used to derive fromulas
C253: Repay = (EBIT - CB x Rate x DSCR)/ (DSCR + Rate x DSCR - Rate)
C255: DSCR | E255: 1.6
C256: Interest Rate | E256: 0.05
C257: EBITDA | F257: 200 | G257: =F257*1.05 -> 210 | H257: 220.5 | I257: 231.525 | J257: 243.10125 | K257: 255.2563125 | L257: 268.0191281 | M257: 281.4200845 | N257: 295.4910888 | O257: 310.2656432
C258: Less: Top-up of DSRA | F258: =F289 -> -3.306942213 | G258: -3.800203747 | H258: -4.335052973 | I258: -4.914442803 | J258: -5.541518884 | K258: -6.219631552 | L258: -6.952348523 | M258: -7.743468331 | N258: -8.597034574 | O258: -9.517351018
C259: CADS | F259: =F257-F258 -> 203.3069422 | G259: 213.8002037 | H259: 224.835053 | I259: 236.4394428 | J259: 248.6427689 | K259: 261.4759441 | L259: 274.9714766 | M259: 289.1635529 | N259: 304.0881233 | O259: 319.7829942
C261: DSCR | F261: =E255 -> 1.6 | G261: =F261 -> 1.6 | H261: 1.6 | I261: 1.6 | J261: 1.6 | K261: 1.6 | L261: 1.6 | M261: 1.6 | N261: 1.6 | O261: 1.6
C263: Required Debt Service | F263: =F259/F261 -> 127.0668389 | G263: 133.6251273 | H263: 140.5219081 | I263: 147.7746518 | J263: 155.4017306 | K263: 163.422465 | L263: 171.8571729 | M263: 180.7272205 | N263: 190.0550771 | O263: 199.8643714
C265: EBIT - CB x Rate x DSCR | F265: =F257-F272*F274*F261 -> 107.8063162 | G265: 123.8866421 | H265: 141.3227269 | I265: 160.2108354 | J265: 180.6535156 | K265: 202.7599886 | L265: 226.6465618 | M265: 252.4370676 | N265: 280.2633271 | O265: 310.2656432
C266: DSCR + Rate x DSCR + Rate | F266: =F261+F261*F274-F274 -> 1.63 | G266: 1.63 | H266: 1.63 | I266: 1.63 | J266: 1.63 | K266: 1.63 | L266: 1.63 | M266: 1.63 | N266: 1.63 | O266: 1.63
C267: Repay | F267: =F265/F266 -> 66.13884427 | G267: 76.00407494 | H267: 86.70105945 | I267: 98.28885607 | J267: 110.8303777 | K267: 124.392631 | L267: 139.0469705 | M267: 154.8693666 | N267: 171.9406915 | O267: 190.3470204
C269: Debt
D270: OB | F270: =F272+F271 -> 1218.559892 | G270: 1152.421048 | H270: 1076.416973 | I270: 989.7159137 | J270: 891.4270576 | K270: 780.59668 | L270: 656.2040489 | M270: 517.1570785 | N270: 362.2877119 | O270: 190.3470204
D271: Less: Fixed | F271: =F267 -> 66.13884427 | G271: 76.00407494 | H271: 86.70105945 | I271: 98.28885607 | J271: 110.8303777 | K271: 124.392631 | L271: 139.0469705 | M271: 154.8693666 | N271: 171.9406915 | O271: 190.3470204
D272: CB | E272: =F270 -> 1218.559892 | F272: 1152.421048 | G272: 1076.416973 | H272: 989.7159137 | I272: 891.4270576 | J272: 780.59668 | K272: 656.2040489 | L272: 517.1570785 | M272: 362.2877119 | N272: 190.3470204 | O272: 0
D274: Interest Rate | E274: =E256 -> 0.05 | F274: =E274 -> 0.05 | G274: 0.05 | H274: 0.05 | I274: 0.05 | J274: 0.05 | K274: 0.05 | L274: 0.05 | M274: 0.05 | N274: 0.05 | O274: 0.05
D275: Interest Expense on OB | F275: =F274*F270 -> 60.92799462 | G275: 57.6210524 | H275: 53.82084866 | I275: 49.48579569 | J275: 44.57135288 | K275: 39.029834 | L275: 32.81020245 | M275: 25.85785392 | N275: 18.11438559 | O275: 9.517351018
C277: Debt Service Calculation
D278: This Period DS | F278: =F275+F271 -> 127.0668389 | G278: 133.6251273 | H278: 140.5219081 | I278: 147.7746518 | J278: 155.4017306 | K278: 163.422465 | L278: 171.8571729 | M278: 180.7272205 | N278: 190.0550771 | O278: 199.8643714
D279: Current Interest | F279: =F270*F274 -> 60.92799462 | G279: =G272*G274+G271*G274 -> 57.6210524 | H279: 53.82084866 | I279: 49.48579569 | J279: 44.57135288 | K279: 39.029834 | L279: 32.81020245 | M279: 25.85785392 | N279: 18.11438559 | O279: 9.517351018
D280: Next Interest | E280: =E272*F274 -> 60.92799462 | F280: =F272*F274 -> 57.6210524 | G280: 53.82084866 | H280: 49.48579569 | I280: 44.57135288 | J280: 39.029834 | K280: 32.81020245 | L280: 25.85785392 | M280: 18.11438559 | N280: 9.517351018 | O280: 0
D281: Next Fixed Repayments
... 219 more rows
